Workbook

Sheet 1. Instructions
C3: Instructions for 5-Year Budget Projections Workbook
D4: = Information should be entered into light gray shaded cells.
D6: Name of Proposed Charter School: | E6: Creek Point Academy
D7: Planned Opening School Year (YYYY): | E7: 2024
D8: Planned Location (School Corporation): | E8: Indianapolis Public Schools
D10: 1. Instructions | E10: • All organizers submitting a charter application to the Indiana Charter School Board must complete all four BLUE tabs of the Budget Projections Workbook. No information is required to be entered into WHITE cells, they will autofill as information is entered into GREY cells. • Column and Row references in these instructions are to the Excel spreadsheet Column or Row.
D11: 2. Enrollment Projection | E11: • Please provide a summary of the school's projected enrollment for the proposed grade span for the next five years.
D12: 3. Staffing Plan | E12: • Please provide a list of administrative, instructional, and other staff along with estimates of proposed salaries and benefits. Please include both full and part-time employees and contractors. Projected salary and benefits should align with Year 0 and 5-Year budgets. • The estimated "average salary" for each position should include all taxable amounts (including taxable fringe benefits, stipends, bonuses, awards, and allowances). • "Other Insurance" includes health care, long-term care, life, disability. • "Other Benefits" are non-taxable benefits (e.g., educational assistance, dependent care assistance, transportation benefits, non-taxable fringe benefits, etc.).
D13: 4. Year 0 - Budget and Cash Flow | E13: • Please provide budget and cash flow projections for the start-up year (Year 0).
D14: 5. 5-Year Budget | E14: • Please provide 5-year budget projections (Year 1 - Year 5). Year 0 data will automatically populate once Tab 4 is completed. Note that the information provided in Tab 3 must align with the personnel expenses provided in Tab 5 or Tab 5 will throw an ERROR.
D15: Notes: | E15: • Applicants proposing to operate a network of schools should add a worksheet or attach a separate file reflecting the consolidated network's 5-Year pro-forma budget, reflecting all components - including the regional back office/central office - of the Indiana network. • This template is not intended to be exhaustive. If it is unclear to which line a particular item of revenue or expense belongs, add it to the closest approximation or to one of the "other" categories and make a note in the budget narrative.
F17: Ver. 7.20.23

Sheet 2. Enrollment Projections
D3: School Enrollment Projections
D4: (must align with Charter Application Enrollment Plan)
D6: School Name: | F6: =IF(ISBLANK('1. Instructions'!E6),"Please enter School Name on Tab 1.",'1. Instructions'!E6) -> Creek Point Academy
D7: Planned Opening Year: | F7: =IF(ISBLANK('1. Instructions'!E7),"Please enter School's Opening Year on Tab 1.",'1. Instructions'!E7) -> 2024 | I7: REQUIRED
D8: Planned Location: | F8: =IF(ISNUMBER(SEARCH("Select from drop-down list →",'1. Instructions'!E8)),"Please enter School's Planned Location on Tab 1.",'1. Instructions'!E8) -> Indianapolis Public Schools | I8: REQUIRED
D10: Is the proposal for an Adult High School (please see requirements below): | H10: Select from drop-down list →
H11: =IF((ISNUMBER(SEARCH("Select from drop-down list →",H10))), "", IF((ISNUMBER(SEARCH("No",H10))), "Complete Enrollment Lines 15-27 only.", "Complete Enrollment Line 31 only.")) -> 
D13: Enrollment | E13: Year 1 | F13: Year 2 | G13: Year 3 | H13: Year 4 | I13: Year 5 | K13: Notes & Definitions
D15: Kindergarten | E15: 50 | F15: 75 | G15: 100 | H15: 100 | I15: 100 | K15: 1) An "adult high school" is a charter school that has a majority of enrolled students that: (1) belong to a graduation cohort that has already graduated; or (2) are over the age of eighteen (18) years of age; at the time the student was first enrolled at the school. ICSB is prohibited from authorizing an adult high school unless the general assembly has made a specific appropriation for the high school pursuant to Indiana Code 20-24-7-13.5. If your proposal is for an adult high school, complete Row 31 only. 2) A "virtual student" is defined as a student for whom at least fifty percent (50%) of the instructional services received from the school is virtual instruction. Virtual instruction means instruction that is provided in an interactive learning environment created through technology in which students are separated from their teacher by time or space, or both. Students receiving more than 50% of their instruction virtually generate eighty-five percent (85%) of the foundation formula amount rather than 100%. The analysis is applicable on a per student basis. 3) The "basic" tuition support grant for K-12 schools is equal to the following formula: (Foundation Amount X ADM) + ((Complexity Multiplier X Complexity Index) X ADM) The Distribution calculations are an estimate based on projected enrollment multiplied by basic tuition support in the amounts as set forth in the most recently passed (2024-25 FY) budget- Foundation = $6,590 for the 2023-24 SY and $6,681 for the 2024-25 SY (and beyond) and Complexity Multiplier = $3,983 for the 2023-24 SY and $4,024 for the 2024-25 SY. The school's actual distribution will be based on the school's ADM count of eligible pupils enrolled in the school on two count dates (in October and February) multiplied by the basic tuition support calculation. The calculation uses the Complexity Index for the school corporation in which the proposed charter school will be located- the school's actual Complexity Index amount will likely differ. The Special Education Grant amount is calculated on Tab 4 and uses the grant amount for moderate disabilities ($2,930 for the 2024-25 SY). The grant amount for severe disabilities is $11,695 for the 2024-25 SY). 4) The Adult Learner Grant amount for adult high schools is $6,750. The Adult Distribution is calculated by multiplying Total Enrollment by the Adult Grant.
D16: Grade 1 | E16: 56 | F16: 56 | G16: 84 | H16: 84 | I16: 84
D17: Grade 2 | E17: 56 | F17: 56 | G17: 56 | H17: 84 | I17: 84
D18: Grade 3 | E18: 28 | F18: 56 | G18: 56 | H18: 56 | I18: 84
D19: Grade 4 | E19: 28 | F19: 28 | G19: 56 | H19: 56 | I19: 56
D20: Grade 5 | E20: 26 | F20: 28 | G20: 28 | H20: 56 | I20: 56
D21: Grade 6 | E21: 26 | F21: 26 | G21: 28 | H21: 28 | I21: 56
D22: Grade 7 | E22: 25 | F22: 25 | G22: 26 | H22: 28 | I22: 28
D23: Grade 8 | E23: 25 | F23: 25 | G23: 26 | H23: 28 | I23: 27
D24: Grade 9
D25: Grade 10
D26: Grade 11
D27: Grade 12
D29: Total K-12 Enrollment: | E29: =SUM(E15:E27) -> 320 | F29: =SUM(F15:F27) -> 375 | G29: =SUM(G15:G27) -> 460 | H29: =SUM(H15:H27) -> 520 | I29: =SUM(I15:I27) -> 575
D31: Adult Learners (1) | E31: 0 | F31: 0 | G31: 0 | H31: 0 | I31: 0
D33: Total Adult Enrollment: | E33: =E31 -> 0 | F33: =F31 -> 0 | G33: =G31 -> 0 | H33: =H31 -> 0 | I33: =I31 -> 0
D35: Estimated % of Students:
D36: Special Education | E36: 0.125 | F36: 0.125 | G36: 0.125 | H36: 0.125 | I36: 0.125
D37: English Learners | E37: 0.5 | F37: 0.5 | G37: 0.5 | H37: 0.5 | I37: 0.5
D38: Free/Reduced Priced Lunch | E38: 0.97 | F38: 0.97 | G38: 0.97 | H38: 0.97 | I38: 0.97
D39: Virtual Students (2) | E39: 0 | F39: 0 | G39: 0 | H39: 0 | I39: 0
D41: K-12 Distribution (3) | E41: =(((E29*E39)*(CONTROL!$K$17*0.85))+((E29*(1-E39))*CONTROL!$K$17))+(E29*((IFERROR(VLOOKUP('1. Instructions'!$E$8,CONTROL!$C$17:$G$306,4,FALSE),0))*CONTROL!$K$18)) -> 2608824.576 | F41: =(((F29*F39)*(CONTROL!$K$17*0.85))+((F29*(1-F39))*CONTROL!$K$17))+(F29*((IFERROR(VLOOKUP('1. Instructions'!$E$8,CONTROL!$C$17:$G$306,4,FALSE),0))*CONTROL!$K$18)) -> 3057216.3 | G41: =(((G29*G39)*(CONTROL!$K$17*0.85))+((G29*(1-G39))*CONTROL!$K$17))+(G29*((IFERROR(VLOOKUP('1. Instructions'!$E$8,CONTROL!$C$17:$G$306,4,FALSE),0))*CONTROL!$K$18)) -> 3750185.328 | H41: =(((H29*H39)*(CONTROL!$K$17*0.85))+((H29*(1-H39))*CONTROL!$K$17))+(H29*((IFERROR(VLOOKUP('1. Instructions'!$E$8,CONTROL!$C$17:$G$306,4,FALSE),0))*CONTROL!$K$18)) -> 4239339.936 | I41: =(((I29*I39)*(CONTROL!$K$17*0.85))+((I29*(1-I39))*CONTROL!$K$17))+(I29*((IFERROR(VLOOKUP('1. Instructions'!$E$8,CONTROL!$C$17:$G$306,4,FALSE),0))*CONTROL!$K$18)) -> 4687731.66
D43: Adult Distribution (4) | E43: =CONTROL!$K$21*E33 -> 0 | F43: =CONTROL!$K$21*F33 -> 0 | G43: =CONTROL!$K$21*G33 -> 0 | H43: =CONTROL!$K$21*H33 -> 0 | I43: =CONTROL!$K$21*I33 -> 0
E45: =IF(AND((SUM(E41:I41)>0),(SUM(E43:I43)>0)),"ERROR: Please complete EITHER Rows 15-27 OR Row 31, not both.","") -> 

Sheet 3. Staffing Plan
C2: 5-Year Projected Staffing Plan
D3: School Name: | F3: =IF(ISBLANK('1. Instructions'!E6),"Please enter School Name on Tab 1.",'1. Instructions'!E6) -> Creek Point Academy
D4: Planned Opening Year: | F4: =IF(ISBLANK('1. Instructions'!E7),"Please enter School's Opening Year on Tab 1.",'1. Instructions'!E7) -> 2024
D6: • Complete all relevant Grey Shaded areas -> Name of Position, Number of Positions, Average Salary, Health Insurance, Retirement Contribution, and Other Benefits. • Projected salary and benefits should align with Year 0 and 5-Year budgets. • Please read footnotes below for additional information before completing the worksheet.
F10: Year 0 | J10: Year 1 | N10: Year 2 | R10: Year 3 | V10: Year 4 | Z10: Year 5
F11: Number | G11: Average Salary (1) | H11: Total Expense | J11: Number | K11: Average Salary | L11: Total Expense | N11: Number | O11: Average Salary | P11: Total Expense | R11: Number | S11: Average Salary | T11: Total Expense | V11: Number | W11: Average Salary | X11: Total Expense | Z11: Number | AA11: Average Salary | AB11: Total Expense
D12: INSTRUCTIONAL STAFF
D13: Classroom Teachers | G13: 0 | H13: =F13*G13 -> 0 | J13: 12 | K13: 62300 | L13: =J13*K13 -> 747600 | N13: 14 | O13: 64135 | P13: =N13*O13 -> 897890 | R13: 17 | S13: 66060 | T13: =R13*S13 -> 1123020 | V13: 19 | W13: 68030 | X13: =V13*W13 -> 1292570 | Z13: 21 | AA13: 70065 | AB13: =Z13*AA13 -> 1471365
D14: Specials Teachers | G14: 0 | H14: =F14*G14 -> 0 | J14: 3 | K14: 59400 | L14: =J14*K14 -> 178200 | N14: 3 | O14: 61200 | P14: =N14*O14 -> 183600 | R14: 3 | S14: 63000 | T14: =R14*S14 -> 189000 | V14: 3 | W14: 64900 | X14: =V14*W14 -> 194700 | Z14: 3 | AA14: 66900 | AB14: =Z14*AA14 -> 200700
D15: English Learner (EL) Teachers | G15: 0 | H15: 0 | J15: 3 | K15: 56660 | L15: 169980 | N15: 4 | O15: 58360 | P15: 233440 | R15: 5 | S15: 60120 | T15: 300600 | V15: 6 | W15: 61920 | X15: 371520 | Z15: 7 | AA15: 63780 | AB15: 446460
D16: Special Education Teachers | G16: 0 | H16: 0 | J16: 2 | K16: 59075 | L16: 118150 | N16: 2 | O16: 60825 | P16: 121650 | R16: 3 | S16: 62650 | T16: 187950 | V16: 4 | W16: 64550 | X16: 258200 | Z16: 4 | AA16: 66475 | AB16: 265900
D17: Academic Specialists | G17: 0 | H17: 0 | J17: 1 | K17: 62050 | L17: 62050 | N17: 1 | O17: 63900 | P17: 63900 | R17: 1 | S17: 65800 | T17: 65800 | V17: 1 | W17: 67800 | X17: 67800 | Z17: 1 | AA17: 69850 | AB17: 69850
D18: English Learner (EL) Paraprofessionals | G18: 0 | H18: 0 | J18: 1.875 | K18: 24106.667 | L18: 45200.00063 | N18: 1.875 | O18: 24800 | P18: 46500 | R18: 1.875 | S18: 25546.66667 | T18: 47900 | V18: 1.875 | W18: 26346.66667 | X18: 49400 | Z18: 1.875 | AA18: 27093.33333 | AB18: 50800
D19: Special Education Aides | G19: 0 | H19: 0 | J19: 2.625 | K19: 25371.43 | L19: 66600.00375 | N19: 3.5 | O19: 26125.715 | P19: 91440.0025 | R19: 4.375 | S19: 26902.85714 | T19: 117700 | V19: 4.375 | W19: 27725 | X19: 121296.875 | Z19: 4.375 | AA19: 28548.57143 | AB19: 124900
D20: Interventionists (Paraprofessionals) | G20: 0 | H20: 0 | J20: 0.5 | K20: 23550 | L20: =J20*K20 -> 11775 | N20: 0.5 | O20: 24250 | P20: =N20*O20 -> 12125 | R20: 2.5 | S20: 24972 | T20: =R20*S20 -> 62430 | V20: 3.75 | W20: 25720 | X20: =V20*W20 -> 96450 | Z20: 5 | AA20: 26495 | AB20: =Z20*AA20 -> 132475
G21: 0 | H21: 0 | K21: 0 | L21: 0 | O21: 0 | P21: 0 | S21: 0 | T21: 0 | W21: 0 | X21: 0 | AA21: 0 | AB21: 0
G22: 0 | H22: 0 | K22: 0 | L22: 0 | O22: 0 | P22: 0 | S22: 0 | T22: 0 | W22: 0 | X22: 0 | AA22: 0 | AB22: 0
G23: 0 | H23: 0 | K23: 0 | L23: 0 | O23: 0 | P23: 0 | S23: 0 | T23: 0 | W23: 0 | X23: 0 | AA23: 0 | AB23: 0
G24: 0 | H24: 0 | K24: 0 | L24: 0 | O24: 0 | P24: 0 | S24: 0 | T24: 0 | W24: 0 | X24: 0 | AA24: 0 | AB24: 0
G25: 0 | H25: 0 | K25: 0 | L25: 0 | O25: 0 | P25: 0 | S25: 0 | T25: 0 | W25: 0 | X25: 0 | AA25: 0 | AB25: 0
G26: 0 | H26: 0 | K26: 0 | L26: 0 | O26: 0 | P26: 0 | S26: 0 | T26: 0 | W26: 0 | X26: 0 | AA26: 0 | AB26: 0
G27: 0 | H27: 0 | K27: 0 | L27: 0 | O27: 0 | P27: 0 | S27: 0 | T27: 0 | W27: 0 | X27: 0 | AA27: 0 | AB27: 0
D28: Total Instructional Staff: | F28: =SUM(F13:F27) -> 0 | H28: =SUM(H13:H27) -> 0 | J28: =SUM(J13:J27) -> 26 | L28: =SUM(L13:L27) -> 1399555.004 | N28: =SUM(N13:N27) -> 29.875 | P28: =SUM(P13:P27) -> 1650545.002 | R28: =SUM(R13:R27) -> 37.75 | T28: =SUM(T13:T27) -> 2094400 | V28: =SUM(V13:V27) -> 43 | X28: =SUM(X13:X27) -> 2451936.875 | Z28: =SUM(Z13:Z27) -> 47.25 | AB28: =SUM(AB13:AB27) -> 2762450
D30: ADMIN & SUPPORT
D31: Principal | F31: 0.25 | G31: 125400 | H31: =F31*G31 -> 31350 | J31: 1 | K31: 154500 | L31: =J31*K31 -> 154500 | N31: 1 | O31: 158100 | P31: =N31*O31 -> 158100 | R31: 1 | S31: 161800 | T31: =R31*S31 -> 161800 | V31: 1 | W31: 165500 | X31: =V31*W31 -> 165500 | Z31: 1 | AA31: 169400 | AB31: =Z31*AA31 -> 169400
D32: Deans | G32: 0 | H32: =F32*G32 -> 0 | J32: 2 | K32: 83475 | L32: =J32*K32 -> 166950 | N32: 2 | O32: 171650 | P32: =N32*O32 -> 343300 | R32: 3 | S32: 117633.3333 | T32: =R32*S32 -> 352900 | V32: 3 | W32: 120933.3333 | X32: =V32*W32 -> 362800 | Z32: 3 | AA32: 124333.3333 | AB32: =Z32*AA32 -> 373000
D33: Registrar | F33: 0.25 | G33: 51600 | H33: 12900 | J33: 1 | K33: 53500 | L33: 53500 | N33: 1 | O33: 55100 | P33: 55100 | R33: 1 | S33: 56800 | T33: 56800 | V33: 1 | W33: 58500 | X33: 58500 | Z33: 1 | AA33: 60200 | AB33: 60200
D34: Office Administrator | G34: 0 | H34: 0 | J34: 1 | K34: 29000 | L34: 29000 | N34: 1 | O34: 29900 | P34: 29900 | R34: 1 | S34: 30800 | T34: 30800 | V34: 1 | W34: 31700 | X34: 31700 | Z34: 1 | AA34: 32700 | AB34: 32700
D35: Admissions Representative | F35: 0.25 | G35: 45600 | H35: =F35*G35 -> 11400 | J35: 1 | K35: 50600 | L35: =J35*K35 -> 50600 | N35: 1 | O35: 52000 | P35: =N35*O35 -> 52000 | R35: 1 | S35: 53400 | T35: =R35*S35 -> 53400 | V35: 1 | W35: 54900 | X35: =V35*W35 -> 54900 | Z35: 1 | AA35: 56400 | AB35: =Z35*AA35 -> 56400
D36: Library Technology Specialist | G36: 0 | H36: 0 | J36: 1 | K36: 58700 | L36: 58700 | N36: 1 | O36: 60500 | P36: 60500 | R36: 1 | S36: 62300 | T36: 62300 | V36: 1 | W36: 64200 | X36: 64200 | Z36: 1 | AA36: 66100 | AB36: 66100
D37: Educational Technology Coordinator | G37: 0 | H37: 0 | J37: 0.375 | K37: 37066.66667 | L37: 13900 | N37: 0.375 | O37: 38133.33333 | P37: 14300 | R37: 0.375 | S37: 39466.66667 | T37: 14800 | V37: 0.375 | W37: 40533.33333 | X37: 15200 | Z37: 0.375 | AA37: 41866.66667 | AB37: 15700
D38: Curriculum Specialist | G38: 0 | H38: 0 | J38: 0.75 | K38: 63200 | L38: 47400 | N38: 0.75 | O38: 65066.66667 | P38: 48800 | R38: 0.75 | S38: 66933.33333 | T38: 50200 | V38: 0.75 | W38: 69066.66667 | X38: 51800 | Z38: 0.75 | AA38: 71066.66667 | AB38: 53300
D39: Social Worker | G39: 0 | H39: 0 | J39: 1 | K39: 54000 | L39: 54000 | N39: 1 | O39: 55700 | P39: 55700 | R39: 1 | S39: 57300 | T39: 57300 | V39: 1 | W39: 59000 | X39: 59000 | Z39: 1 | AA39: 60800 | AB39: 60800
D40: Behavior Support Specialist | G40: 0 | H40: 0 | J40: 1 | K40: 43600 | L40: 43600 | N40: 1 | O40: 44900 | P40: 44900 | R40: 1 | S40: 46300 | T40: 46300 | V40: 1 | W40: 47600 | X40: 47600 | Z40: 1 | AA40: 49100 | AB40: 49100
D41: Student/Family Liaison | G41: 0 | H41: 0 | J41: 1 | K41: 38400 | L41: 38400 | N41: 1 | O41: 39500 | P41: 39500 | R41: 1 | S41: 40700 | T41: 40700 | V41: 1 | W41: 42000 | X41: 42000 | Z41: 1 | AA41: 43200 | AB41: 43200
D42: Lunch/Recess Aide | G42: 0 | H42: 0 | J42: 1 | K42: 19900 | L42: 19900 | N42: 1 | O42: 20600 | P42: 20600 | R42: 1 | S42: 21200 | T42: 21200 | V42: 1 | W42: 21800 | X42: 21800 | Z42: 1 | AA42: 22500 | AB42: 22500
G43: 0 | H43: 0 | K43: 0 | L43: 0 | O43: 0 | P43: 0 | S43: 0 | T43: 0 | W43: 0 | X43: 0 | AA43: 0 | AB43: 0
G44: 0 | H44: 0 | K44: 0 | L44: 0 | O44: 0 | P44: 0 | S44: 0 | T44: 0 | W44: 0 | X44: 0 | AA44: 0 | AB44: 0
G45: 0 | H45: 0 | K45: 0 | L45: 0 | O45: 0 | P45: 0 | S45: 0 | T45: 0 | W45: 0 | X45: 0 | AA45: 0 | AB45: 0
D46: Total Admin & Support Staff: | F46: =SUM(F31:F45) -> 0.75 | H46: =SUM(H31:H45) -> 55650 | J46: =SUM(J31:J45) -> 12.125 | L46: =SUM(L31:L45) -> 730450 | N46: =SUM(N31:N45) -> 12.125 | P46: =SUM(P31:P45) -> 922700 | R46: =SUM(R31:R45) -> 13.125 | T46: =SUM(T31:T45) -> 948500 | V46: =SUM(V31:V45) -> 13.125 | X46: =SUM(X31:X45) -> 975000 | Z46: =SUM(Z31:Z45) -> 13.125 | AB46: =SUM(AB31:AB45) -> 1002400
G48: Rate/Per Employee Expense | H48: Total Expense | K48: Rate/Per Employee Expense | L48: Total Expense | O48: Rate/Per Employee Expense | P48: Total Expense | S48: Rate/Per Employee Expense | T48: Total Expense | W48: Rate/Per Employee Expense | X48: Total Expense | AA48: Rate/Per Employee Expense | AB48: Total Expense
D49: BENEFITS
D50: Health Insurance (2) | G50: 11200 | H50: =G50*($F$28+$F$46) -> 8400 | K50: 10500 | L50: =K50*($J$28+$J$46) -> 400312.5 | O50: =ROUND(K50*1.02,-2) -> 10700 | P50: =O50*($N$28+$N$46) -> 449400 | S50: =ROUND(O50*1.02,-2) -> 10900 | T50: =S50*($R$28+$R$46) -> 554537.5 | W50: =ROUND(S50*1.02,-2) -> 11100 | X50: =W50*($V$28+$V$46) -> 622987.5 | AA50: =ROUND(W50*1.02,-2) -> 11300 | AB50: =AA50*($Z$28+$Z$46) -> 682237.5
D51: Retirement Contributions (3) | G51: 1750 | H51: =G51*($F$28+$F$46) -> 1312.5 | K51: 1350 | L51: =K51*($J$28+$J$46) -> 51468.75 | O51: =ROUND(K51*1.02,-2) -> 1400 | P51: =O51*($N$28+$N$46) -> 58800 | S51: =ROUND(O51*1.02,-2) -> 1400 | T51: =S51*($R$28+$R$46) -> 71225 | W51: =ROUND(S51*1.02,-2) -> 1400 | X51: =W51*($V$28+$V$46) -> 78575 | AA51: =ROUND(W51*1.02,-2) -> 1400 | AB51: =AA51*($Z$28+$Z$46) -> 84525
D52: Social Security | G52: 0.062 | H52: =G52*($H$28+$H$46) -> 3450.3 | K52: 0.062 | L52: =K52*($L$28+$L$46) -> 132060.3103 | O52: 0.062 | P52: =O52*($P$28+$P$46) -> 159541.1902 | S52: 0.062 | T52: =S52*($T$28+$T$46) -> 188659.8 | W52: 0.062 | X52: =W52*($X$28+$X$46) -> 212470.0862 | AA52: 0.062 | AB52: =AA52*($AB$28+$AB$46) -> 233420.7
D53: Medicare | G53: 0.0145 | H53: =G53*($H$28+$H$46) -> 806.925 | K53: 0.0145 | L53: =K53*($L$28+$L$46) -> 30885.07256 | O53: 0.0145 | P53: =O53*($P$28+$P$46) -> 37312.05254 | S53: 0.0145 | T53: =S53*($T$28+$T$46) -> 44122.05 | W53: 0.0145 | X53: =W53*($X$28+$X$46) -> 49690.58469 | AA53: 0.0145 | AB53: =AA53*($AB$28+$AB$46) -> 54590.325
D54: Unemployment | G54: 0.025 | H54: =G54*($H$28+$H$46) -> 1391.25 | K54: 0.025 | L54: =K54*($L$28+$L$46) -> 53250.12511 | O54: 0.025 | P54: =O54*($P$28+$P$46) -> 64331.12506 | S54: 0.025 | T54: =S54*($T$28+$T$46) -> 76072.5 | W54: 0.025 | X54: =W54*($X$28+$X$46) -> 85673.42188 | AA54: 0.025 | AB54: =AA54*($AB$28+$AB$46) -> 94121.25
D56: Other Compensation (4) | L56: 355500 | P56: 370200 | T56: 389100 | X56: 407200 | AB56: 423400
D60: SUMMARY | F60: Year 0 | J60: Year 1 | N60: Year 2 | R60: Year 3 | V60: Year 4 | Z60: Year 5
F61: Total Staff | H61: =F28+F46 -> 0.75 | J61: Total Staff | L61: =J28+J46 -> 38.125 | N61: Total Staff | P61: =N28+N46 -> 42 | R61: Total Staff | T61: =R28+R46 -> 50.875 | V61: Total Staff | X61: =V28+V46 -> 56.125 | Z61: Total Staff | AB61: =Z28+Z46 -> 60.375
F62: Total Salaries: | H62: =H28+H46 -> 55650 | J62: Total Salaries: | L62: =L28+L46 -> 2130005.004 | N62: Total Salaries: | P62: =P28+P46 -> 2573245.002 | R62: Total Salaries: | T62: =T28+T46 -> 3042900 | V62: Total Salaries: | X62: =X28+X46 -> 3426936.875 | Z62: Total Salaries: | AB62: =AB28+AB46 -> 3764850
F63: Total Benefits: | H63: =SUM(H50:H56) -> 15360.975 | J63: Total Benefits: | L63: =SUM(L50:L56) -> 1023476.758 | N63: Total Benefits: | P63: =SUM(P50:P56) -> 1139584.368 | R63: Total Benefits: | T63: =SUM(T50:T56) -> 1323716.85 | V63: Total Benefits: | X63: =SUM(X50:X56) -> 1456596.593 | Z63: Total Benefits: | AB63: =SUM(AB50:AB56) -> 1572294.775
F64: Total Salaries + Benefits: | H64: =H62+H63 -> 71010.975 | J64: Total Salaries + Benefits: | L64: =L62+L63 -> 3153481.762 | N64: Total Salaries + Benefits: | P64: =P62+P63 -> 3712829.37 | R64: Total Salaries + Benefits: | T64: =T62+T63 -> 4366616.85 | V64: Total Salaries + Benefits: | X64: =X62+X63 -> 4883533.468 | Z64: Total Salaries + Benefits: | AB64: =AB62+AB63 -> 5337144.775
F65: Student/teacher ratio | H65: N/A | J65: Student/teacher ratio | L65: =IFERROR((ROUND(('2. Enrollment Projections'!$E$29+'2. Enrollment Projections'!$E$33)/(J28),0)&":1"),"") -> 12:1 | N65: Student/teacher ratio | P65: =IFERROR((ROUND(('2. Enrollment Projections'!$E$29+'2. Enrollment Projections'!$E$33)/(N28),0)&":1"),"") -> 11:1 | R65: Student/teacher ratio | T65: =IFERROR((ROUND(('2. Enrollment Projections'!$E$29+'2. Enrollment Projections'!$E$33)/(R28),0)&":1"),"") -> 8:1 | V65: Student/teacher ratio | X65: =IFERROR((ROUND(('2. Enrollment Projections'!$E$29+'2. Enrollment Projections'!$E$33)/(V28),0)&":1"),"") -> 7:1 | Z65: Student/teacher ratio | AB65: =IFERROR((ROUND(('2. Enrollment Projections'!$E$29+'2. Enrollment Projections'!$E$33)/(Z28),0)&":1"),"") -> 7:1
F66: Student/staff ratio | H66: N/A | J66: Student/staff ratio | L66: =IFERROR((ROUND(('2. Enrollment Projections'!$E$29+'2. Enrollment Projections'!$E$33)/(J46),0)&":1"),"") -> 26:1 | N66: Student/staff ratio | P66: =IFERROR((ROUND(('2. Enrollment Projections'!$E$29+'2. Enrollment Projections'!$E$33)/(N46),0)&":1"),"") -> 26:1 | R66: Student/staff ratio | T66: =IFERROR((ROUND(('2. Enrollment Projections'!$E$29+'2. Enrollment Projections'!$E$33)/(R46),0)&":1"),"") -> 24:1 | V66: Student/staff ratio | X66: =IFERROR((ROUND(('2. Enrollment Projections'!$E$29+'2. Enrollment Projections'!$E$33)/(V46),0)&":1"),"") -> 24:1 | Z66: Student/staff ratio | AB66: =IFERROR((ROUND(('2. Enrollment Projections'!$E$29+'2. Enrollment Projections'!$E$33)/(Z46),0)&":1"),"") -> 24:1
C69: Footnotes: This information does not constitute legal advice. You must consult an attorney and/or accountant for any questions about employment and employment tax matters, including worker classification before completing this worksheet.
C70: Generally, an individual who performs services for you is your "employee" if you have the right to control what work will be done and how it will be done. An individual who performs services for you is an "independent contractor" if the you have the right to control or direct only the result of the work and not what will be done and how it will be done. An employee's wages are subject to employment tax withholding (by the employer) while an independent contractor is subject to self-employment tax (by the individual). There are many factors used by the IRS to determine whether an individual is an employee or independent contractor. See, https://www.irs.gov/businesses/small-businesses-self-employed/independent-contractor-self-employed-or-employee. The IRS has issued a number of rulings and advisory opinions holding that, under many factual situations, an individual rendering services as a substitute teacher should be considered to be an employee and not an independent contractor. Misclassification of an employee as an independent contractor may result in additional payroll taxes due, as well as possible interest and penalties. Payments made to "independent contractors" should be listed as "Other Compensation" on Row 57, and explained in the budget narrative. Do not include payments made to independent contractors on Rows 15-47.
C74: (1) Amounts paid to "employees" regardless of whether they are full-time, part-time, or limited-time should be listed in the Average Salary column (Rows 15-47) for each year. All pay provided to an employee for services performed should be included, including salaries, vacation allowances, bonuses, stipends, commissions, and taxable fringe benefits. For more information, see https://www.irs.gov/publications/p15.
C75: (2) Health Insurance includes Group Life Insurance, Group Health Insurance, Group Accident Insurance, Other Authorized Group Insurance, and Workers Compensation Insurance.
C76: (3) Retirement Contributions includes Severance/Early Retirement Pay, Public Employees Retirement Fund, Teachers Retirement Fund, Public Employees Retirement Fund (Optional Contribution), Teacher Retirement Fund (Optional Contribution).
C77: (4) Other Compensation - Includes any other benefits not otherwise classified above, including payments made to independent contractors. This cell should reflect the sum total of all Other Compensation for the year.

Sheet 4. Budget & Cash Flow (Year 0)
D2: Annual Operating Budget and Cash Flow Projections -- Fiscal Year 0 -- Pre-Opening Period
D4: School Name: | E4: =IF(ISBLANK('1. Instructions'!E6),"Please enter School Name on Tab 1.",'1. Instructions'!E6) -> Creek Point Academy
D5: Planned Opening Year: | E5: =IF(ISBLANK('1. Instructions'!E7),"Please enter School's Opening Year on Tab 1.",'1. Instructions'!E7) -> 2024
D7: Special Instructions for Schools Contracting with a Management Company:
D8: Please include a note in the assumptions column and budget narrative if any of of the listed amounts include additional service, consulting, facility, or licensing fees paid to a management company or affiliate of a management company that are not included in Line 97 (CMO/EMO fee). For example, you should note any additional fees for instructional or support supplies and resources; license fees for materials, software, or educational programming; or fees related to the management, sale, or lease of real estate. Please also state whether your facility is leased or purchased from a management company or affiliate of a management company.
D10: If a line item is completed that includes the words "(please describe)" a specific description of the item must be provided in the appropriate box in Column N on Tab 5. Failure to provide a description as requested may result in rejection of the submission.
D13: REVENUE | G13: July | H13: August | I13: September | J13: October | K13: November | L13: December | M13: January | N13: February | O13: March | P13: April | Q13: May | R13: June | S13: Year 0 Totals
D15: Federal Revenue - See Footnotes
D16: Public Charter School Program Grant (1) | G16: 0 | H16: 0 | I16: 0 | J16: 0 | K16: 0 | L16: 0 | M16: 0 | N16: 0 | O16: 0 | P16: 0 | Q16: 0 | R16: 0 | S16: =SUM(G16:R16) -> 0
D17: Other Federal Revenue (please describe on Tab 5) | G17: 0 | H17: 0 | I17: 0 | J17: 0 | K17: 0 | L17: 0 | M17: 0 | N17: 0 | O17: 0 | P17: 0 | Q17: 0 | R17: 0 | S17: =SUM(G17:R17) -> 0
D19: Total Federal Revenue: | G19: =SUM(G16:G17) -> 0 | H19: 0 | I19: 0 | J19: 0 | K19: 0 | L19: 0 | M19: 0 | N19: 0 | O19: 0 | P19: 0 | Q19: 0 | R19: 0 | S19: =SUM(G19:R19) -> 0
D21: Other Revenue
D22: Contributions and Donations from Private Sources | G22: 0 | H22: 0 | I22: 0 | J22: 0 | K22: 0 | L22: 0 | M22: =(M35+M53+M59+M77) -> 0 | N22: 0 | O22: 0 | P22: 139870.325 | Q22: 139870.325 | R22: 139870.325 | S22: =SUM(G22:R22) -> 419610.975
D23: Interest Income | G23: 0 | H23: 0 | I23: 0 | J23: 0 | K23: 0 | L23: 0 | M23: 0 | N23: 0 | O23: 0 | P23: 0 | Q23: 0 | R23: 0 | S23: =SUM(G23:R23) -> 0
D24: Other Revenue (please describe on Tab 5) | G24: 0 | H24: 0 | I24: 0 | J24: 0 | K24: 0 | L24: 0 | M24: 0 | N24: 0 | O24: 0 | P24: 0 | Q24: 0 | R24: 0 | S24: =SUM(G24:R24) -> 0
D26: Total Other Revenue: | G26: =SUM(G22:G24) -> 0 | H26: 0 | I26: 0 | J26: 0 | K26: 0 | L26: 0 | M26: =SUM(M22:M24) -> 0 | N26: 0 | O26: 0 | P26: 139870.325 | Q26: 139870.325 | R26: 139870.325 | S26: =SUM(G26:R26) -> 419610.975
D28: TOTAL REVENUE: | G28: =G19+G26 -> 0 | H28: 0 | I28: 0 | J28: 0 | K28: 0 | L28: 0 | M28: =M19+M26 -> 0 | N28: 0 | O28: 0 | P28: 139870.325 | Q28: 139870.325 | R28: 139870.325 | S28: =SUM(G28:R28) -> 419610.975
D30: EXPENSES
D32: Personnel Expenses
D33: Wages, Benefits, & Payroll Taxes | G33: 0 | H33: 0 | I33: 0 | J33: 0 | K33: 0 | L33: 0 | M33: 0 | N33: 0 | O33: 0 | P33: 23670.325 | Q33: 23670.325 | R33: 23670.325 | S33: =SUM(G33:R33) -> 71010.975
D35: Total Personnel Expenses: | G35: =SUM(G33:G33) -> 0 | H35: 0 | I35: 0 | J35: 0 | K35: 0 | L35: 0 | M35: 0 | N35: 0 | O35: 0 | P35: 23670.325 | Q35: 23670.325 | R35: 23670.325 | S35: =SUM(G35:R35) -> 71010.975
D37: Instructional Supplies and Resources
D38: Curricular Materials | G38: 0 | H38: 0 | I38: 0 | J38: 0 | K38: 0 | L38: 0 | M38: 0 | N38: 0 | O38: 0 | P38: 0 | Q38: 0 | R38: 0 | S38: =SUM(G38:R38) -> 0
D39: Library/Media Services (Other than Staff) | G39: 0 | H39: 0 | I39: 0 | J39: 0 | K39: 0 | L39: 0 | M39: 0 | N39: 0 | O39: 0 | P39: 0 | Q39: 0 | R39: 0 | S39: 0
D40: Technology Supporting Instruction (computers, tablets, etc.) | G40: 0 | H40: 0 | I40: 0 | J40: 0 | K40: 0 | L40: 0 | M40: 0 | N40: 0 | O40: 0 | P40: 0 | Q40: 0 | R40: 0 | S40: 0
D41: Student Assessment | G41: 0 | H41: 0 | I41: 0 | J41: 0 | K41: 0 | L41: 0 | M41: 0 | N41: 0 | O41: 0 | P41: 0 | Q41: 0 | R41: 0 | S41: 0
D42: Instructional Software | G42: 0 | H42: 0 | I42: 0 | J42: 0 | K42: 0 | L42: 0 | M42: 0 | N42: 0 | O42: 0 | P42: 0 | Q42: 0 | R42: 0 | S42: 0
D43: Professional Development | G43: 0 | H43: 0 | I43: 0 | J43: 0 | K43: 0 | L43: 0 | M43: 0 | N43: 0 | O43: 0 | P43: 0 | Q43: 0 | R43: 0 | S43: 0
D44: Enrichment Programs (athletics or extra-curricular activities) | G44: 0 | H44: 0 | I44: 0 | J44: 0 | K44: 0 | L44: 0 | M44: 0 | N44: 0 | O44: 0 | P44: 0 | Q44: 0 | R44: 0 | S44: 0
D45: Other Instruction Supplies (not including technology) | G45: 0 | H45: 0 | I45: 0 | J45: 0 | K45: 0 | L45: 0 | M45: 0 | N45: 0 | O45: 0 | P45: 0 | Q45: 0 | R45: 0 | S45: 0
D47: Total Instructional Supplies and Resources: | G47: =SUM(G38:G45) -> 0 | H47: 0 | I47: 0 | J47: 0 | K47: 0 | L47: 0 | M47: =SUM(M38:M45) -> 0 | N47: 0 | O47: 0 | P47: 0 | Q47: 0 | R47: 0 | S47: =SUM(G47:R47) -> 0
D49: Administrative Resources
D50: Administrative Technology - Computers & Software (not SiS) | G50: 0 | H50: 0 | I50: 0 | J50: 0 | K50: 0 | L50: 0 | M50: 0 | N50: 0 | O50: 0 | P50: 0 | Q50: 0 | R50: 0 | S50: =SUM(G50:R50) -> 0
D51: Other Administrative Expenses (please describe on Tab 5) | G51: 0 | H51: 0 | I51: 0 | J51: 0 | K51: 0 | L51: 0 | M51: 0 | N51: 0 | O51: 0 | P51: 0 | Q51: 0 | R51: 0 | S51: =SUM(G51:R51) -> 0
D53: Total Administrative Resources: | G53: =SUM(G50:G51) -> 0 | H53: 0 | I53: 0 | J53: 0 | K53: 0 | L53: 0 | M53: 0 | N53: 0 | O53: 0 | P53: 0 | Q53: 0 | R53: 0 | S53: =SUM(G53:R53) -> 0
D55: Governing Board Expenses
D56: Legal Services | G56: 0 | H56: 0 | I56: 0 | J56: 0 | K56: 0 | L56: 0 | M56: 0 | N56: 0 | O56: 0 | P56: 5000 | Q56: 5000 | R56: 5000 | S56: =SUM(G56:R56) -> 15000
D57: Other Governing Board Expenses (please describe on Tab 5) | G57: 0 | H57: 0 | I57: 0 | J57: 0 | K57: 0 | L57: 0 | M57: 0 | N57: 0 | O57: 0 | P57: 0 | Q57: 0 | R57: 0 | S57: =SUM(G57:R57) -> 0
D59: Total Governing Board Expenses: | G59: =SUM(G56:G57) -> 0 | H59: 0 | I59: 0 | J59: 0 | K59: 0 | L59: 0 | M59: 0 | N59: 0 | O59: 0 | P59: 5000 | Q59: 5000 | R59: 5000 | S59: =SUM(G59:R59) -> 15000
D61: Purchased or Other Services (do not include staff expenses)
D62: Audit Services | G62: 0 | H62: 0 | I62: 0 | J62: 0 | K62: 0 | L62: 0 | M62: 0 | N62: 0 | O62: 0 | P62: 0 | Q62: 0 | R62: 0 | S62: =SUM(G62:R62) -> 0
D63: Payroll Services | G63: 0 | H63: 0 | I63: 0 | J63: 0 | K63: 0 | L63: 0 | M63: 0 | N63: 0 | O63: 0 | P63: 0 | Q63: 0 | R63: 0 | S63: 0
D64: Financial Accounting | G64: 0 | H64: 0 | I64: 0 | J64: 0 | K64: 0 | L64: 0 | M64: 0 | N64: 0 | O64: 0 | P64: 0 | Q64: 0 | R64: 0 | S64: 0
D65: Printing, Publishing, Duplicating Services | G65: 0 | H65: 0 | I65: 0 | J65: 0 | K65: 0 | L65: 0 | M65: 0 | N65: 0 | O65: 0 | P65: 0 | Q65: 0 | R65: 0 | S65: 0
D66: Telecommunication & IT Services | G66: 0 | H66: 0 | I66: 0 | J66: 0 | K66: 0 | L66: 0 | M66: 0 | N66: 0 | O66: 0 | P66: 0 | Q66: 0 | R66: 0 | S66: 0
D67: Insurance (non-facility) | G67: 0 | H67: 0 | I67: 0 | J67: 0 | K67: 0 | L67: 0 | M67: 0 | N67: 0 | O67: 0 | P67: 0 | Q67: 0 | R67: 0 | S67: 0
D68: Travel | G68: 0 | H68: 0 | I68: 0 | J68: 0 | K68: 0 | L68: 0 | M68: 0 | N68: 0 | O68: 0 | P68: 0 | Q68: 0 | R68: 0 | S68: 0
D69: Mail Services | G69: 0 | H69: 0 | I69: 0 | J69: 0 | K69: 0 | L69: 0 | M69: 0 | N69: 0 | O69: 0 | P69: 0 | Q69: 0 | R69: 0 | S69: 0
D70: Special Education Administration | G70: 0 | H70: 0 | I70: 0 | J70: 0 | K70: 0 | L70: 0 | M70: 0 | N70: 0 | O70: 0 | P70: 0 | Q70: 0 | R70: 0 | S70: 0
D71: Student Information Services or Systems | G71: 0 | H71: 0 | I71: 0 | J71: 0 | K71: 0 | L71: 0 | M71: 0 | N71: 0 | O71: 0 | P71: 0 | Q71: 0 | R71: 0 | S71: 0
D72: Food Services | G72: 0 | H72: 0 | I72: 0 | J72: 0 | K72: 0 | L72: 0 | M72: 0 | N72: 0 | O72: 0 | P72: 0 | Q72: 0 | R72: 0 | S72: 0
D73: Transportation Services | G73: 0 | H73: 0 | I73: 0 | J73: 0 | K73: 0 | L73: 0 | M73: 0 | N73: 0 | O73: 0 | P73: 0 | Q73: 0 | R73: 0 | S73: 0
D74: Marketing Expenses | G74: 0 | H74: 0 | I74: 0 | J74: 0 | K74: 0 | L74: 0 | M74: 0 | N74: 0 | O74: 0 | P74: 111200 | Q74: 111200 | R74: 111200 | S74: 333600
D75: Other Services (please describe on Tab 5) | G75: 0 | H75: 0 | I75: 0 | J75: 0 | K75: 0 | L75: 0 | M75: 0 | N75: 0 | O75: 0 | P75: 0 | Q75: 0 | R75: 0 | S75: 0
D77: Total Professional Purchased or Other Services: | G77: =SUM(G62:G75) -> 0 | H77: 0 | I77: 0 | J77: 0 | K77: 0 | L77: 0 | M77: 0 | N77: 0 | O77: 0 | P77: 111200 | Q77: 111200 | R77: 111200 | S77: =SUM(G77:R77) -> 333600
D79: Facilities Expenses (do not include staff expenses, e.g. custodian)
D80: Facility Lease/Mortgage Payments (please describe) | G80: 0 | H80: 0 | I80: 0 | J80: 0 | K80: 0 | L80: 0 | M80: 0 | N80: 0 | O80: 0 | P80: 0 | Q80: 0 | R80: 0 | S80: =SUM(G80:R80) -> 0
D81: Capital Improvements | G81: 0 | H81: 0 | I81: 0 | J81: 0 | K81: 0 | L81: 0 | M81: 0 | N81: 0 | O81: 0 | P81: 0 | Q81: 0 | R81: 0 | S81: 0
D82: Other Principal Payments | G82: 0 | H82: 0 | I82: 0 | J82: 0 | K82: 0 | L82: 0 | M82: 0 | N82: 0 | O82: 0 | P82: 0 | Q82: 0 | R82: 0 | S82: 0
D83: Operating Leases | G83: 0 | H83: 0 | I83: 0 | J83: 0 | K83: 0 | L83: 0 | M83: 0 | N83: 0 | O83: 0 | P83: 0 | Q83: 0 | R83: 0 | S83: 0
D84: Interest Payments | G84: 0 | H84: 0 | I84: 0 | J84: 0 | K84: 0 | L84: 0 | M84: 0 | N84: 0 | O84: 0 | P84: 0 | Q84: 0 | R84: 0 | S84: 0
D85: Interest Expense | G85: 0 | H85: 0 | I85: 0 | J85: 0 | K85: 0 | L85: 0 | M85: 0 | N85: 0 | O85: 0 | P85: 0 | Q85: 0 | R85: 0 | S85: 0
D86: Depreciation Expense | G86: 0 | H86: 0 | I86: 0 | J86: 0 | K86: 0 | L86: 0 | M86: 0 | N86: 0 | O86: 0 | P86: 0 | Q86: 0 | R86: 0 | S86: 0
D87: Insurance (Facility) | G87: 0 | H87: 0 | I87: 0 | J87: 0 | K87: 0 | L87: 0 | M87: 0 | N87: 0 | O87: 0 | P87: 0 | Q87: 0 | R87: 0 | S87: 0
D88: Purchase of Furniture, Fixtures, & Equipment | G88: 0 | H88: 0 | I88: 0 | J88: 0 | K88: 0 | L88: 0 | M88: 0 | N88: 0 | O88: 0 | P88: 0 | Q88: 0 | R88: 0 | S88: 0
D89: Electric & Gas | G89: 0 | H89: 0 | I89: 0 | J89: 0 | K89: 0 | L89: 0 | M89: 0 | N89: 0 | O89: 0 | P89: 0 | Q89: 0 | R89: 0 | S89: 0
D90: Water & Sewage | G90: 0 | H90: 0 | I90: 0 | J90: 0 | K90: 0 | L90: 0 | M90: 0 | N90: 0 | O90: 0 | P90: 0 | Q90: 0 | R90: 0 | S90: =SUM(G90:R90) -> 0
D91: Repair and Maintenance Services (including cost of supplies) | G91: 0 | H91: 0 | I91: 0 | J91: 0 | K91: 0 | L91: 0 | M91: 0 | N91: 0 | O91: 0 | P91: 0 | Q91: 0 | R91: 0 | S91: 0
D92: Custodial Services (including cost of suppliesl) | G92: 0 | H92: 0 | I92: 0 | J92: 0 | K92: 0 | L92: 0 | M92: 0 | N92: 0 | O92: 0 | P92: 0 | Q92: 0 | R92: 0 | S92: 0
D93: Waste Disposal | G93: 0 | H93: 0 | I93: 0 | J93: 0 | K93: 0 | L93: 0 | M93: 0 | N93: 0 | O93: 0 | P93: 0 | Q93: 0 | R93: 0 | S93: 0
D94: Security Services | G94: 0 | H94: 0 | I94: 0 | J94: 0 | K94: 0 | L94: 0 | M94: 0 | N94: 0 | O94: 0 | P94: 0 | Q94: 0 | R94: 0 | S94: 0
D95: Other Facility Expenses (please describe) | G95: 0 | H95: 0 | I95: 0 | J95: 0 | K95: 0 | L95: 0 | M95: 0 | N95: 0 | O95: 0 | P95: 0 | Q95: 0 | R95: 0 | S95: 0
D97: Total Facilities Expenses: | G97: =SUM(G80:G95) -> 0 | H97: =SUM(H80:H95) -> 0 | I97: =SUM(I80:I95) -> 0 | J97: 0 | K97: 0 | L97: 0 | M97: 0 | N97: 0 | O97: 0 | P97: 0 | Q97: 0 | R97: 0 | S97: =SUM(G97:R97) -> 0
D99: Other Expenses - See Footnotes
D100: Management Fee (2) | G100: 0 | H100: 0 | I100: 0 | J100: 0 | K100: 0 | L100: 0 | M100: 0 | N100: 0 | O100: 0 | P100: 0 | Q100: 0 | R100: 0 | S100: =SUM(G100:R100) -> 0
D101: Bank Fees | G101: 0 | H101: 0 | I101: 0 | J101: 0 | K101: 0 | L101: 0 | M101: 0 | N101: 0 | O101: 0 | P101: 0 | Q101: 0 | R101: 0 | S101: =SUM(G101:R101) -> 0
D102: Other Expenses (please describe) | G102: 0 | H102: 0 | I102: 0 | J102: 0 | K102: 0 | L102: 0 | M102: 0 | N102: 0 | O102: 0 | P102: 0 | Q102: 0 | R102: 0 | S102: =SUM(G102:R102) -> 0
D104: Total Other Expenses: | G104: =SUM(G100:G102) -> 0 | H104: 0 | I104: 0 | J104: 0 | K104: 0 | L104: 0 | M104: 0 | N104: 0 | O104: 0 | P104: 0 | Q104: 0 | R104: 0 | S104: =SUM(G104:R104) -> 0
D106: TOTAL EXPENSES: | G106: =G35+G47+G53+G59+G77+G97+G104 -> 0 | H106: 0 | I106: 0 | J106: 0 | K106: 0 | L106: 0 | M106: 0 | N106: 0 | O106: 0 | P106: 139870.325 | Q106: 139870.325 | R106: 139870.325 | S106: =SUM(G106:R106) -> 419610.975
D108: CHANGE IN NET ASSETS: | G108: =G28-G106 -> 0 | H108: 0 | I108: 0 | J108: 0 | K108: 0 | L108: 0 | M108: 0 | N108: 0 | O108: 0 | P108: 0 | Q108: 0 | R108: 0 | S108: =SUM(G108:R108) -> 0
D111: Footnotes:
D112: (1) This is a competitive grant. Funding is not guaranteed. The funding for the PCSP grant is distributed through a reimbursement process. Contact IDOE's Office of Title Grants and Support for more information.
D113: (2) Include only those fees (per-pupil, contingent, or fixed) paid to a management company for educational or management services and describe how the fee is calculated in the budget narrative. All amounts separate from a specific “management fee” paid to a management company or an affiliate of the management company must be included elsewhere in the worksheet (e.g., lease payments, instructional supplies, software, technology, etc.) and described in the “Additional Information” Column.

Sheet 5. 5-Year Budget
D2: Projected New School Annual Operating Budget -- YEARS 1 - 5 (Fiscal Year July 1-June 30)
D4: School Name: | E4: =IF(ISBLANK('1. Instructions'!E6),"Please enter School Name on Tab 1.",'1. Instructions'!E6) -> Creek Point Academy
D5: Planned Opening Year: | E5: =IF(ISBLANK('1. Instructions'!E7),"Please enter School's Opening Year on Tab 1.",'1. Instructions'!E7) -> 2024
D7: Special Instructions for Schools Contracting with a Management Company:
D8: Please include a note in the assumptions column and budget narrative if any of of the listed amounts include additional service, consulting, facility, or licensing fees paid to a management company or affiliate of a management company that are not included in Line 97 (CMO/EMO fee). For example, you should note any additional fees for instructional or support supplies and resources; license fees for materials, software, or educational programming; or fees related to the management, sale, or lease of real estate. Please also state whether your facility is leased or purchased from a management company or affiliate of a management company.
D10: If a line item is completed that includes the words "(please describe)" a specific description of the item must be provided in the appropriate box in Column N on Tab 5. Failure to provide a description as requested may result in rejection of the submission.
D13: REVENUES | G13: Year 0 | H13: Year 1 | I13: Year 2 | J13: Year 3 | K13: Year 4 | L13: Year 5 | N13: Additional Information
D16: State Revenue - See Footnotes | N16: Other State Grants (Row 29)
D17: Basic Tuition Support / Adult Learners Grant - From Tab 2 | H17: =IF('2. Enrollment Projections'!E33 > 0, '2. Enrollment Projections'!E43, '2. Enrollment Projections'!E41) -> 2608824.576 | I17: =IF('2. Enrollment Projections'!F33 > 0, '2. Enrollment Projections'!F43, '2. Enrollment Projections'!F41) -> 3057216.3 | J17: =IF('2. Enrollment Projections'!G33 > 0, '2. Enrollment Projections'!G43, '2. Enrollment Projections'!G41) -> 3750185.328 | K17: =IF('2. Enrollment Projections'!H33 > 0, '2. Enrollment Projections'!H43, '2. Enrollment Projections'!H41) -> 4239339.936 | L17: =IF('2. Enrollment Projections'!I33 > 0, '2. Enrollment Projections'!I43, '2. Enrollment Projections'!I41) -> 4687731.66
D18: Special Education Grant - From Tab 2 | H18: =IF('2. Enrollment Projections'!E33>0,('2. Enrollment Projections'!E33*'2. Enrollment Projections'!E36)*CONTROL!$K$20,('2. Enrollment Projections'!E29*'2. Enrollment Projections'!E36)*CONTROL!$K$20) -> 117200 | I18: =IF('2. Enrollment Projections'!F33>0,('2. Enrollment Projections'!F33*'2. Enrollment Projections'!F36)*CONTROL!$K$20,('2. Enrollment Projections'!F29*'2. Enrollment Projections'!F36)*CONTROL!$K$20) -> 137343.75 | J18: =IF('2. Enrollment Projections'!G33>0,('2. Enrollment Projections'!G33*'2. Enrollment Projections'!G36)*CONTROL!$K$20,('2. Enrollment Projections'!G29*'2. Enrollment Projections'!G36)*CONTROL!$K$20) -> 168475 | K18: =IF('2. Enrollment Projections'!H33>0,('2. Enrollment Projections'!H33*'2. Enrollment Projections'!H36)*CONTROL!$K$20,('2. Enrollment Projections'!H29*'2. Enrollment Projections'!H36)*CONTROL!$K$20) -> 190450 | L18: =IF('2. Enrollment Projections'!I33>0,('2. Enrollment Projections'!I33*'2. Enrollment Projections'!I36)*CONTROL!$K$20,('2. Enrollment Projections'!I29*'2. Enrollment Projections'!I36)*CONTROL!$K$20) -> 210593.75
D19: Honors Diploma/Academic Performance Grant | H19: 0 | I19: 0 | J19: 0 | K19: 0 | L19: 0
D20: Career and Technical Education | H20: 0 | I20: 0 | J20: 0 | K20: 0 | L20: 0
D21: Non-English Speaking Program | H21: 56600 | I21: 66300 | J21: 81300 | K21: 91900 | L21: 101800
D22: Charter and Innovation Network School Grant ($1,400 per student) | H22: ='2. Enrollment Projections'!E29*CONTROL!J22 -> 448000 | I22: ='2. Enrollment Projections'!F29*CONTROL!J23 -> 56250 | J22: ='2. Enrollment Projections'!G29*CONTROL!J23 -> 69000 | K22: ='2. Enrollment Projections'!H29*CONTROL!J23 -> 78000 | L22: ='2. Enrollment Projections'!I29*CONTROL!J23 -> 86250
D23: Formative (Interim) Assessment Grant | H23: 0 | I23: 0 | J23: 0 | K23: 0 | L23: 0
D24: State Matching Funds for School Lunch Program | H24: 0 | I24: 0 | J24: 0 | K24: 0 | L24: 0
D25: Curricular Material Reimbursement Program ($150 per student) | H25: ='2. Enrollment Projections'!E29*CONTROL!J23 -> 48000 | I25: ='2. Enrollment Projections'!F29*CONTROL!J24 -> 0 | J25: ='2. Enrollment Projections'!G29*CONTROL!J24 -> 0 | K25: ='2. Enrollment Projections'!H29*CONTROL!J24 -> 0 | L25: ='2. Enrollment Projections'!I29*CONTROL!J24 -> 0
D26: Remediation Testing Grant | H26: 0 | I26: 0 | J26: 0 | K26: 0 | L26: 0
D27: Teacher Appreciation Grant | H27: 0 | I27: 0 | J27: 0 | K27: 0 | L27: 0
D28: Other State Grants (please describe) (1) | H28: 0 | I28: 525000 | J28: 644000 | K28: 728000 | L28: 806400
D30: Total State Revenue: | H30: =SUM(H17:H28) -> 3278624.576 | I30: =SUM(I17:I28) -> 3842110.05 | J30: =SUM(J17:J28) -> 4712960.328 | K30: =SUM(K17:K28) -> 5327689.936 | L30: =SUM(L17:L28) -> 5892775.41
D32: Federal Revenue - See Footnotes | N32: Other Federal Revenue (Row 41)
D33: Public Charter School Program Grant (2) | G33: ='4. Budget & Cash Flow (Year 0)'!S16 -> 0 | H33: 0 | I33: 0 | J33: 0 | K33: 0 | L33: 0
D34: Charter Facilities Assistance Program Grant (2011) | H34: 0 | I34: 0 | J34: 0 | K34: 0 | L34: 0
D35: IDEA- Part B Grant (Special Education) | H35: 74400 | I35: 74400 | J35: 74400 | K35: 74400 | L35: 74400
D36: Title I | H36: 222000 | I36: 347000 | J36: 426000 | K36: 482000 | L36: 534000
D37: Title II | H37: 12800 | I37: 29900 | J37: 36700 | K37: 41500 | L37: 46000
D38: Federal Lunch Program | H38: 230600 | I38: 271700 | J38: 334700 | K38: 383600 | L38: 431900
D39: Federal Breakfast Reimbursement | H39: 65600 | I39: 78800 | J39: 99000 | K39: 114800 | L39: 130300
D40: Other Federal Revenue (please describe) | G40: ='4. Budget & Cash Flow (Year 0)'!S17 -> 0 | H40: 9800 | I40: 15300 | J40: 18800 | K40: 21300 | L40: 23600
D42: Total Federal Revenue: | G42: =G33+G40 -> 0 | H42: =SUM(H33:H40) -> 615200 | I42: =SUM(I33:I40) -> 817100 | J42: =SUM(J33:J40) -> 989600 | K42: =SUM(K33:K40) -> 1117600 | L42: =SUM(L33:L40) -> 1240200
D44: Other Revenue - See Footnotes | N44: Other Revenue (Row 50)
D45: Contributions and Donations from Private Sources | G45: ='4. Budget & Cash Flow (Year 0)'!S22 -> 419610.975 | H45: 2333596.749 | I45: 2306048.443 | J45: 2107282.912 | K45: 2034638.581 | L45: 1932427.352
D46: Student Fees | H46: 6800 | I46: 6800 | J46: 6800 | K46: 6800 | L46: 6800
D47: Other Fees | H47: 0 | I47: 0 | J47: 0 | K47: 0 | L47: 0
D48: Interest Income | G48: ='4. Budget & Cash Flow (Year 0)'!S23 -> 0 | H48: 0 | I48: 0 | J48: 0 | K48: 0 | L48: 0
D49: Other Revenue (please describe) | G49: ='4. Budget & Cash Flow (Year 0)'!S24 -> 0 | H49: 0 | I49: 0 | J49: 0 | K49: 0 | L49: 0
D51: Total Other Revenue: | G51: =G45+G48+G49 -> 419610.975 | H51: =SUM(H45:H49) -> 2340396.749 | I51: =SUM(I45:I49) -> 2312848.443 | J51: =SUM(J45:J49) -> 2114082.912 | K51: =SUM(K45:K49) -> 2041438.581 | L51: =SUM(L45:L49) -> 1939227.352
D53: TOTAL REVENUE: | G53: =G42+G51 -> 419610.975 | H53: =H30+H42+H51 -> 6234221.325 | I53: =I30+I42+I51 -> 6972058.493 | J53: =J30+J42+J51 -> 7816643.24 | K53: =K30+K42+K51 -> 8486728.517 | L53: =L30+L42+L51 -> 9072202.762
D55: EXPENSES
D58: Administrative Staff - See Footnote (3)
D59: Executive Administration: Office of Superintendent | H59: 154500 | I59: 158100 | J59: 161800 | K59: 165500 | L59: 169400
D60: School Administration: Office of the Principal | H60: 166950 | I60: 343300 | J60: 352900 | K60: 362800 | L60: 373000
D61: Other School Administration | H61: 0 | I61: 0 | J61: 0 | K61: 0 | L61: 0
D62: Business Manager/Director of Finance | H62: 0 | I62: 0 | J62: 0 | K62: 0 | L62: 0
D64: Total Administrative Staff: | H64: =SUM(H59:H62) -> 321450 | I64: =SUM(I59:I62) -> 501400 | J64: =SUM(J59:J62) -> 514700 | K64: =SUM(K59:K62) -> 528300 | L64: =SUM(L59:L62) -> 542400
D66: Instructional Staff
D67: Teachers - Regular | H67: 1157830 | I67: 1378830 | J67: 1678420 | K67: 1926590 | L67: 2188375
D68: Teachers - Special Education | H68: 118150 | I68: 121650 | J68: 187950 | K68: 258200 | L68: 265900
D69: Substitutes, Assistants, Paraprofessionals, Aides | H69: 123575.0044 | I69: 150065.0025 | J69: 228030 | K69: 267146.875 | L69: 308175
D70: Summer School Staff | H70: 0 | I70: 0 | J70: 0 | K70: 0 | L70: 0
D72: Total Instructional Staff: | H72: =SUM(H67:H70) -> 1399555.004 | I72: =SUM(I67:I70) -> 1650545.002 | J72: =SUM(J67:J70) -> 2094400 | K72: =SUM(K67:K70) -> 2451936.875 | L72: =SUM(L67:L70) -> 2762450
D74: Non-Instructional/Support Staff - See Footnotes | N74: Other Support Staff (Row 78)
D75: Social Workers, Guidence Counselors, Therapists | H75: 97600 | I75: 100600 | J75: 103600 | K75: 106600 | L75: 109900
D76: Instructional Support Staff (4) | H76: 47400 | I76: 48800 | J76: 50200 | K76: 51800 | L76: 53300
D77: Other Support Staff (please describe) (5) | H77: 191400 | I77: 197100 | J77: 202900 | K77: 208900 | L77: 215000
D78: Nurse | H78: 0 | I78: 0 | J78: 0 | K78: 0 | L78: 0
D79: Librarian | H79: 0 | I79: 0 | J79: 0 | K79: 0 | L79: 0
D80: Information Technology | H80: 72600 | I80: 74800 | J80: 77100 | K80: 79400 | L80: 81800
D81: Maintenance of Buildings, Grounds, Equipment (including Custodial Staff) | H81: 0 | I81: 0 | J81: 0 | K81: 0 | L81: 0
D82: Security Personnel | H82: 0 | I82: 0 | J82: 0 | K82: 0 | L82: 0
D83: Athletic Coaches | H83: 0 | I83: 0 | J83: 0 | K83: 0 | L83: 0
D85: Total Non-Instructional/Support Staff: | H85: =SUM(H75:H83) -> 409000 | I85: =SUM(I75:I83) -> 421300 | J85: =SUM(J75:J83) -> 433800 | K85: =SUM(K75:K83) -> 446700 | L85: =SUM(L75:L83) -> 460000
D87: Subtotal Wages and Salaries: | H87: =H64+H72+H85 -> 2130005.004 | I87: =I64+I72+I85 -> 2573245.002 | J87: =J64+J72+J85 -> 3042900 | K87: =K64+K72+K85 -> 3426936.875 | L87: =L64+L72+L85 -> 3764850
H88: =IF((ROUND(H87,2)=ROUND('3. Staffing Plan'!L62,2)), "","ERROR") ->  | I88: =IF((ROUND(I87,2)=ROUND('3. Staffing Plan'!P62,2)), "","ERROR") ->  | J88: =IF((ROUND(J87,2)=ROUND('3. Staffing Plan'!T62,2)), "","ERROR") ->  | K88: =IF((ROUND(K87,2)=ROUND('3. Staffing Plan'!X62,2)), "","ERROR") ->  | L88: =IF((ROUND(L87,2)=ROUND('3. Staffing Plan'!AB62,2)), "","ERROR") ->  | N88: =IF(COUNTIF(G88:L88,"ERROR"),"Tab 3 and Tab 5 Values do not match.","") -> 
D89: Payroll Taxes and Benefits - From Tab 3 | N89: Other Compensation (Row 94)
D90: Social Security/Medicare/Unemployment | H90: =H87*('3. Staffing Plan'!G52+'3. Staffing Plan'!G53+'3. Staffing Plan'!G54) -> 216195.5079 | I90: =I87*('3. Staffing Plan'!K52+'3. Staffing Plan'!K53+'3. Staffing Plan'!K54) -> 261184.3678 | J90: =J87*('3. Staffing Plan'!O52+'3. Staffing Plan'!O53+'3. Staffing Plan'!O54) -> 308854.35 | K90: =K87*('3. Staffing Plan'!S52+'3. Staffing Plan'!S53+'3. Staffing Plan'!S54) -> 347834.0928 | L90: =L87*('3. Staffing Plan'!W52+'3. Staffing Plan'!W53+'3. Staffing Plan'!W54) -> 382132.275
D91: Health Insurance | H91: ='3. Staffing Plan'!L50 -> 400312.5 | I91: ='3. Staffing Plan'!P50 -> 449400 | J91: ='3. Staffing Plan'!T50 -> 554537.5 | K91: ='3. Staffing Plan'!X50 -> 622987.5 | L91: ='3. Staffing Plan'!AB50 -> 682237.5
D92: Retirement Contributions | H92: ='3. Staffing Plan'!L51 -> 51468.75 | I92: ='3. Staffing Plan'!P51 -> 58800 | J92: ='3. Staffing Plan'!T51 -> 71225 | K92: ='3. Staffing Plan'!X51 -> 78575 | L92: ='3. Staffing Plan'!AB51 -> 84525
D93: Other Compensation (please describe) | H93: ='3. Staffing Plan'!L56 -> 355500 | I93: ='3. Staffing Plan'!P56 -> 370200 | J93: ='3. Staffing Plan'!T56 -> 389100 | K93: ='3. Staffing Plan'!X56 -> 407200 | L93: ='3. Staffing Plan'!AB56 -> 423400
D95: Total Payroll Taxes and Benefits: | G95: ='4. Budget & Cash Flow (Year 0)'!S33 -> 71010.975 | H95: =SUM(H90:H93) -> 1023476.758 | I95: =SUM(I90:I93) -> 1139584.368 | J95: =SUM(J90:J93) -> 1323716.85 | K95: =SUM(K90:K93) -> 1456596.593 | L95: =SUM(L90:L93) -> 1572294.775
D97: Total Personnel Expenses: | G97: ='4. Budget & Cash Flow (Year 0)'!S35 -> 71010.975 | H97: =H87+H95 -> 3153481.762 | I97: =I87+I95 -> 3712829.37 | J97: =J87+J95 -> 4366616.85 | K97: =K87+K95 -> 4883533.468 | L97: =L87+L95 -> 5337144.775
G98: =IF((ROUND(G97,2)=ROUND('3. Staffing Plan'!H64,2)), "","ERROR") ->  | H98: =IF((ROUND(H97,2)=ROUND('3. Staffing Plan'!L64,2)), "","ERROR") ->  | I98: =IF((ROUND(I97,2)=ROUND('3. Staffing Plan'!P64,2)), "","ERROR") ->  | J98: =IF((ROUND(J97,2)=ROUND('3. Staffing Plan'!T64,2)), "","ERROR") ->  | K98: =IF((ROUND(K97,2)=ROUND('3. Staffing Plan'!X64,2)), "","ERROR") ->  | L98: =IF((ROUND(L97,2)=ROUND('3. Staffing Plan'!AB64,2)), "","ERROR") ->  | N98: =IF(COUNTIF(G98:L98,"ERROR"),"Tab 3 and Tab 5 Values do not match.","") -> 
D99: Instructional Supplies and Resources | N99: Other Instructional Supplies and Resources (Row 108)
D100: Curricular Materials | G100: ='4. Budget & Cash Flow (Year 0)'!S38 -> 0 | H100: 78600 | I100: 136200 | J100: 165100 | K100: 191500 | L100: 197600
D101: Library/Media Services (Other than Staff) | G101: ='4. Budget & Cash Flow (Year 0)'!S39 -> 0 | H101: 5000 | I101: 5000 | J101: 5000 | K101: 5000 | L101: 5000
D102: Technology Supporting Instruction (computers, tablets, etc.) | G102: ='4. Budget & Cash Flow (Year 0)'!S40 -> 0 | H102: 52700 | I102: 52700 | J102: 52700 | K102: 52700 | L102: 52700
D103: Student Assessment | G103: ='4. Budget & Cash Flow (Year 0)'!S41 -> 0 | H103: 5500 | I103: 6200 | J103: 7300 | K103: 8000 | L103: 8700
D104: Instructional Software | G104: ='4. Budget & Cash Flow (Year 0)'!S42 -> 0 | H104: 80900 | I104: 84500 | J104: 90200 | K104: 94200 | L104: 98000
D105: Professional Development | G105: ='4. Budget & Cash Flow (Year 0)'!S43 -> 0 | H105: 89100 | I105: 97400 | J105: 109700 | K105: 118400 | L105: 127200
D106: Enrichment Programs (athletics or extra-curricular activities) | G106: ='4. Budget & Cash Flow (Year 0)'!S44 -> 0 | H106: 3000 | I106: 3100 | J106: 3300 | K106: 3400 | L106: 3600
D107: Other Instruction Supplies (not including technology) | G107: ='4. Budget & Cash Flow (Year 0)'!S45 -> 0 | H107: 35000 | I107: 35000 | J107: 35000 | K107: 35000 | L107: 35000
D109: Total Instructional Supplies and Resources: | G109: =SUM(G100:G107) -> 0 | H109: 349800 | I109: 420100 | J109: 468300 | K109: 508200 | L109: 527800
D111: Administrative Resources | N111: Other Administrative Expenses (Row 114)
D112: Administrative Technology - Computers & Software (not SiS) | G112: ='4. Budget & Cash Flow (Year 0)'!S50 -> 0 | H112: 1400 | I112: 1600 | J112: 2000 | K112: 2200 | L112: 2400 | N112: Staff recruitment, compensation and benefits administration, staff development and engagement; safety and security programming
D113: Other Administrative Expenses (please describe) | G113: ='4. Budget & Cash Flow (Year 0)'!S51 -> 0 | H113: 134300 | I113: 146300 | J113: 165500 | K113: 179300 | L113: 193100
D115: Total Administrative Resources: | G115: =SUM(G112:G113) -> 0 | H115: 135700 | I115: 147900 | J115: 167500 | K115: 181500 | L115: 195500
D117: Governing Board Expenses | N117: Other Governing Board Expenses (Row 120)
D118: Legal Services | G118: ='4. Budget & Cash Flow (Year 0)'!S56 -> 15000 | H118: 11800 | I118: 12200 | J118: 12500 | K118: 12900 | L118: 13300 | N118: Board meeting coordination, materials, and meals
D119: Other Governing Board Expenses (please describe) | G119: ='4. Budget & Cash Flow (Year 0)'!S57 -> 0 | H119: 37500 | I119: 37900 | J119: 38300 | K119: 38600 | L119: 39000
D121: Total Governing Board Expenses: | G121: =SUM(G118:G119) -> 15000 | H121: 49300 | I121: 50100 | J121: 50800 | K121: 51500 | L121: 52300
D123: Purchased or Other Services (do not include staff expenses) | N123: Other Services (Row 138)
D124: Audit Services | G124: ='4. Budget & Cash Flow (Year 0)'!S62 -> 0 | H124: 3300 | I124: 3400 | J124: 3500 | K124: 3700 | L124: 3800
D125: Payroll Services | G125: ='4. Budget & Cash Flow (Year 0)'!S63 -> 0 | H125: 0 | I125: 0 | J125: 0 | K125: 0 | L125: 0
D126: Financial Accounting | G126: ='4. Budget & Cash Flow (Year 0)'!S64 -> 0 | H126: 75000 | I126: 75700 | J126: 76500 | K126: 77300 | L126: 78000
D127: Printing, Publishing, Duplicating Services | G127: ='4. Budget & Cash Flow (Year 0)'!S65 -> 0 | H127: 2100 | I127: 1300 | J127: 1500 | K127: 1700 | L127: 1800
D128: Telecommunication & IT Services | G128: ='4. Budget & Cash Flow (Year 0)'!S66 -> 0 | H128: 5300 | I128: 5300 | J128: 5400 | K128: 5500 | L128: 5500
D129: Insurance (non-facility) | G129: ='4. Budget & Cash Flow (Year 0)'!S67 -> 0 | H129: 9500 | I129: 9800 | J129: 10100 | K129: 10400 | L129: 10600
D130: Travel | G130: ='4. Budget & Cash Flow (Year 0)'!S68 -> 0 | H130: 15100 | I130: 16200 | J130: 18200 | K130: 19500 | L130: 20800
D131: Mail Services | G131: ='4. Budget & Cash Flow (Year 0)'!S69 -> 0 | H131: 5000 | I131: 5400 | J131: 6200 | K131: 6700 | L131: 7200
D132: Special Education Administration | G132: ='4. Budget & Cash Flow (Year 0)'!S70 -> 0 | H132: 40700 | I132: 41800 | J132: 43000 | K132: 44200 | L132: 45600
D133: Student Information Services or Systems | G133: ='4. Budget & Cash Flow (Year 0)'!S71 -> 0 | H133: 101800 | I133: 105700 | J133: 111700 | K133: 115900 | L133: 119900
D134: Food Services | G134: ='4. Budget & Cash Flow (Year 0)'!S72 -> 0 | H134: 293000 | I134: 350600 | J134: 438800 | K134: 507300 | L134: 575100
D135: Transportation Services | G135: ='4. Budget & Cash Flow (Year 0)'!S73 -> 0 | H135: 91000 | I135: 91000 | J135: 91000 | K135: 91000 | L135: 91000
D136: Marketing Expenses | G136: ='4. Budget & Cash Flow (Year 0)'!S74 -> 333600 | H136: 355400 | I136: 355800 | J136: 356200 | K136: 356700 | L136: 357100
D137: Other Services (please describe) | G137: ='4. Budget & Cash Flow (Year 0)'!S75 -> 0 | H137: 130200 | I137: 131500 | J137: 132900 | K137: 134300 | L137: 135800
D139: Total Professional Purchased or Other Services: | G139: =SUM(G124:G137) -> 333600 | H139: 1127400 | I139: 1193500 | J139: 1295000 | K139: 1374200 | L139: 1452200
D141: Facilities Expenses (do not include staff expenses, e.g. custodian) | N141: Lease, Mortgage, & Other Facilities (Rows 143, 158)
D142: Facility Lease/Mortgage Payments (please describe) | G142: ='4. Budget & Cash Flow (Year 0)'!S80 -> 0 | H142: 800000 | I142: 800000 | J142: 800000 | K142: 800000 | L142: 800000
D143: Capital Improvements | G143: ='4. Budget & Cash Flow (Year 0)'!S81 -> 0 | H143: 0 | I143: 0 | J143: 0 | K143: 0 | L143: 0
D144: Other Principal Payments | G144: ='4. Budget & Cash Flow (Year 0)'!S82 -> 0 | H144: 0 | I144: 0 | J144: 0 | K144: 0 | L144: 0
D145: Operating Leases | G145: ='4. Budget & Cash Flow (Year 0)'!S83 -> 0 | H145: 0 | I145: 0 | J145: 0 | K145: 0 | L145: 0
D146: Interest Payments | G146: ='4. Budget & Cash Flow (Year 0)'!S84 -> 0 | H146: 0 | I146: 0 | J146: 0 | K146: 0 | L146: 0
D147: Interest Expense | G147: ='4. Budget & Cash Flow (Year 0)'!S85 -> 0 | H147: 0 | I147: 0 | J147: 0 | K147: 0 | L147: 0
D148: Depreciation Expense | G148: ='4. Budget & Cash Flow (Year 0)'!S86 -> 0 | H148: 0 | I148: 0 | J148: 0 | K148: 0 | L148: 0
D149: Insurance (Facility) | G149: ='4. Budget & Cash Flow (Year 0)'!S87 -> 0 | H149: 20200 | I149: 20700 | J149: 21200 | K149: 21800 | L149: 22300
D150: Purchase of Furniture, Fixtures, & Equipment | G150: ='4. Budget & Cash Flow (Year 0)'!S88 -> 0 | H150: 23300 | I150: 23900 | J150: 24600 | K150: 25100 | L150: 25700
D151: Electric & Gas | G151: ='4. Budget & Cash Flow (Year 0)'!S89 -> 0 | H151: 93400 | I151: 95700 | J151: 98100 | K151: 100600 | L151: 103100
D152: Water & Sewage | G152: ='4. Budget & Cash Flow (Year 0)'!S90 -> 0 | H152: 13100 | I152: 13500 | J152: 13800 | K152: 14100 | L152: 14500
D153: Repair and Maintenance Services (including cost of supplies) | G153: ='4. Budget & Cash Flow (Year 0)'!S91 -> 0 | H153: 157100 | I153: 160700 | J153: 164500 | K153: 168400 | L153: 172300
D154: Custodial Services (including cost of suppliesl) | G154: ='4. Budget & Cash Flow (Year 0)'!S92 -> 0 | H154: 170900 | I154: 175200 | J154: 179600 | K154: 184100 | L154: 188700
D155: Waste Disposal | G155: ='4. Budget & Cash Flow (Year 0)'!S93 -> 0 | H155: 9600 | I155: 9800 | J155: 10100 | K155: 10300 | L155: 10600
D156: Security Services | G156: ='4. Budget & Cash Flow (Year 0)'!S94 -> 0 | H156: 5200 | I156: 5300 | J156: 5500 | K156: 5600 | L156: 5800
D157: Other Facility Expenses (please describe) | G157: ='4. Budget & Cash Flow (Year 0)'!S95 -> 0 | H157: 117000 | I157: 119900 | J157: 122900 | K157: 126000 | L157: 129100
D159: Total Facilities Expenses: | G159: =SUM(G142:G157) -> 0 | H159: 1409800 | I159: 1424700 | J159: 1440300 | K159: 1456000 | L159: 1472100
D161: Other Expenses - See Footnotes | N161: Other Expenses (Row 167)
D162: Indiana Charter School Board Administrative Fee (6) | H162: =IF('2. Enrollment Projections'!E33 > 0, '2. Enrollment Projections'!E43*0.00335, ('2. Enrollment Projections'!E41*0.00335) - (('2. Enrollment Projections'!E33*((VLOOKUP('1. Instructions'!$E$8,CONTROL!$C$16:$G$306,2,FALSE))*CONTROL!J18)*0.00335))) -> 8739.56233 | I162: =IF('2. Enrollment Projections'!F33 > 0, '2. Enrollment Projections'!F43*0.0075, ('2. Enrollment Projections'!F41*0.0075) - (('2. Enrollment Projections'!F33*((VLOOKUP('1. Instructions'!$E$8,CONTROL!$C$16:$G$306,2,FALSE))*CONTROL!K18)*0.0075))) -> 22929.12225 | J162: =IF('2. Enrollment Projections'!G33 > 0, '2. Enrollment Projections'!G43*0.0075, ('2. Enrollment Projections'!G41*0.0075) - (('2. Enrollment Projections'!G33*((VLOOKUP('1. Instructions'!$E$8,CONTROL!$C$16:$G$306,2,FALSE))*CONTROL!K18)*0.0075))) -> 28126.38996 | K162: =IF('2. Enrollment Projections'!H33 > 0, '2. Enrollment Projections'!H43*0.0075, ('2. Enrollment Projections'!H41*0.0075) - (('2. Enrollment Projections'!H33*((VLOOKUP('1. Instructions'!$E$8,CONTROL!$C$16:$G$306,2,FALSE))*CONTROL!K18)*0.0075))) -> 31795.04952 | L162: =IF('2. Enrollment Projections'!I33 > 0, '2. Enrollment Projections'!I43*0.0075, ('2. Enrollment Projections'!I41*0.0075) - (('2. Enrollment Projections'!I33*((VLOOKUP('1. Instructions'!$E$8,CONTROL!$C$16:$G$306,2,FALSE))*CONTROL!K18)*0.0075))) -> 35157.98745
D163: Management Fee (7) | G163: ='4. Budget & Cash Flow (Year 0)'!S100 -> 0 | H163: 0 | I163: 0 | J163: 0 | K163: 0
D164: Bank Fees | G164: ='4. Budget & Cash Flow (Year 0)'!S101 -> 0 | H164: 0 | I164: 0 | J164: 0 | K164: 0 | L164: 0
D165: Escrow | H165: 0 | I165: 0 | J165: 0 | K165: 0 | L165: 0
D166: Other Expenses (please describe) | G166: ='4. Budget & Cash Flow (Year 0)'!S102 -> 0 | H166: 0 | I166: 0 | J166: 0 | K166: 0 | L166: 0
D168: Total Other Expenses: | G168: =SUM(G162:G166) -> 0 | H168: =SUM(H162:H166) -> 8739.56233 | I168: 22929.12225 | J168: 28126.38996 | K168: 31795.04952 | L168: 35157.98745
D170: TOTAL EXPENSES: | G170: =G97+G109+G115+G121+G139+G159+G168 -> 419610.975 | H170: 6234221.325 | I170: 6972058.493 | J170: 7816643.24 | K170: 8486728.517 | L170: 9072202.762
D172: CHANGE IN NET ASSETS: | G172: =G53-G170 -> 0 | H172: 0 | I172: 0 | J172: 0 | K172: 0 | L172: 0
D175: Footnotes:
D176: (1) Including, but not limited to: alternative education program grants (IC 20-30-8); educational technology plan grants (IC 20-20-13); secured school fund grants (IC 10-21-1-2); dual language pilot program grants (IC 20-20-41-2); teacher and student advancement fund grants (IC 20-20-43-3); student and parent support services grants (IC 20-34-9); etc.
D177: (2) This is a competitive grant. Funding is not guaranteed. The funding for the PCSP grant is distributed through a reimbursement process. Contact IDOE's Office of Title Grants and Support for more information.
D178: (3) Office of Superintendent includes the Head of School, School Leader, Executive Director, Chief Executive Officer, as well as associate or assistant executive positions; Office of the Principal includes Vice- and Assistant Principals; Other School Administration includes Chief Academic Officers; Directors, Deans, and Coordinators of: Curriculum, Instruction, Faculty, Students, Assessment, Student Affairs, Student Achievement, and similar positions.
D179: (4) Includes Staffing for Instruction and Curriculum Development, Instructional Staff Training, etc.
D180: (5) Secretary; Receptionist; Attendance Clerk; Office Manager, Cafeteria Worker, and other full or part-time employees not specifically described.
D181: (6) Three-Quarters of a percent (0.75%) of basic tuition support or adult learner grant amount received by the school.
D182: (7) Include only those fees (per-pupil, contingent, or fixed) paid to a management company for educational or management services and describe how the fee is calculated in the budget narrative. All amounts separate from a specific “management fee” paid to a management company or an affiliate of the management company must be included elsewhere in the worksheet (e.g., lease payments, instructional supplies, software, technology, etc.) and described in the “Additional Information” Column.

Sheet CONTROL (hidden)
B2: Instructions: | C2: + Ensure all editable cells are unlocked and all un-editable cells are locked.
C3: + On Review Tab, select “Protect Sheet” and make sure only “Select Unlocked Cells” is checked (PERFORM FOR EACH SHEET).
C4: + Enter Password (STORE PASSWORD SOMEWHERE RECOVERABLE).
C5: + To Hide “CONTROL” Sheet
C6: - Switch to VBE (press [Alt]+[F11]).
C7: - Select Sheet8(CONTROL).
C8: - In Properties window, select “2 – xlSheetVeryHidden” from the Visible property's drop-down list.
C9: - To Unhide, select “-1 – xlSheetVeryHidden” from the Visible property's drop-down list.
B11: All Grant amounts are from 2023 Biennial Budget. Complexity Index Data (Columns D & F) are taken from LSA Budget Projections Run (04/27/23). Over the biennium, Column E (FY 24) is used for Current Year and Column G (FY 25) is used for Years 1-5.
C13: Data Validation List (Complexity)
B15: Corp No. | C15: School Corporation | D15: FY 24 Index | E15: FY 24 $/ADM | F15: FY 25 Index2 | G15: FY 25 $/ADM
C16: Select from drop-down list → | I16: Grants | J16: FY 2024 | K16: FY 2025
B17: 0015 | C17: Adams Central Community Schools | D17: 0.0725 | E17: =(D17*$J$18)+$J$17 -> 6878.7675 | F17: 0.0725 | G17: =(F17*$K$18)+$K$17 -> 6972.74 | I17: Foundation Amount: | J17: 6590 | K17: 6681
B18: 5265 | C18: Alexandria Com School Corp | D18: 0.2134 | E18: 7439.9722 | F18: 0.2134 | G18: =(F18*$K$18)+$K$17 -> 7539.7216 | I18: Complexity Multiplier: | J18: 3983 | K18: 4024
B19: 5275 | C19: Anderson Community School Corp | D19: 0.4028 | E19: 8194.3524 | F19: 0.4028 | G19: 8301.8672 | I19: ELL Adjustment: | L19: (not currently calculated - See IC 20-43-6-3(b) STEP 4)
B20: 5470 | C20: Argos Community Schools | D20: 0.1364 | E20: 7133.2812 | F20: 0.1364 | G20: 7229.8736 | I20: Sped Grant (moderate): | J20: 2790 | K20: 2930 | L20: (not calculated for severe disabilities - See IC 20-43-7-6)
B21: 2435 | C21: Attica Consolidated Sch Corp | D21: 0.1484 | E21: 7181.0772 | F21: 0.1484 | G21: 7278.1616 | I21: Adult Grant: | J21: 6750 | K21: 6750
B22: 3315 | C22: Avon Community School Corp | D22: 0.0775 | E22: 6898.6825 | F22: 0.0775 | G22: 6992.86 | I22: Charter Grant | J22: 1400 | K22: 1400
B23: 1315 | C23: Barr-Reeve Com Schools Inc | D23: 0.0512 | E23: 6793.9296 | F23: 0.0512 | G23: 6887.0288 | I23: Textbook Reimbursement | J23: 150 | K23: 150
B24: 0365 | C24: Bartholomew Con School Corp | D24: 0.1317 | E24: 7114.5611 | F24: 0.1317 | G24: 7210.9608
B25: 6895 | C25: Batesville Community Sch Corp | D25: 0.0626 | E25: 6839.3358 | F25: 0.0626 | G25: 6932.9024 | I25: $/ADM = "Foundation Amount" + ("Complexity Multiplier" * "Complexity Index")
B26: 2260 | C26: Baugo Community Schools | D26: 0.0975 | E26: 6978.3425 | F26: 0.0975 | G26: 7073.34
B27: 5380 | C27: Beech Grove City Schools | D27: 0.2855 | E27: 7727.1465 | F27: 0.2855 | G27: 7829.852
B28: 0395 | C28: Benton Community School Corp | D28: 0.1659 | E28: 7250.7797 | F28: 0.1659 | G28: 7348.5816 | J28: Adult High School?
B29: 0515 | C29: Blackford County Schools | D29: 0.2284 | E29: 7499.7172 | F29: 0.2284 | G29: 7600.0816 | J29: Select from drop-down list →
B30: 2920 | C30: Bloomfield School District | D30: 0.1349 | E30: 7127.3067 | F30: 0.1349 | G30: 7223.8376 | J30: Yes
B31: 3405 | C31: Blue River Valley Schools | D31: 0.1042 | E31: 7005.0286 | F31: 0.1042 | G31: 7100.3008 | J31: No
B32: 0935 | C32: Borden-Henryville Sch Corp | D32: 0.0734 | E32: 6882.3522 | F32: 0.0734 | G32: 6976.3616
B33: 5480 | C33: Bremen Public Schools | D33: 0.0723 | E33: 6877.9709 | F33: 0.0723 | G33: 6971.9352
B34: 0670 | C34: Brown County School Corporation | D34: 0.1142 | E34: 7044.8586 | F34: 0.1142 | G34: 7140.5408
B35: 3305 | C35: Brownsburg Community Sch Corp | D35: 0.0567 | E35: 6815.8361 | F35: 0.0567 | G35: 6909.1608
B36: 3695 | C36: Brownstown Cnt Com Sch Corp | D36: 0.1381 | E36: 7140.0523 | F36: 0.1381 | G36: 7236.7144
B37: 3455 | C37: C A Beard Memorial School Corp | D37: 0.1538 | E37: 7202.5854 | F37: 0.1538 | G37: 7299.8912
B38: 6340 | C38: Cannelton City Schools | D38: 0.3636 | E38: 8038.2188 | F38: 0.3636 | G38: 8144.1264
B39: 3060 | C39: Carmel Clay Schools | D39: 0.0232 | E39: 6682.4056 | F39: 0.0232 | G39: 6774.3568
B40: 0750 | C40: Carroll Consolidated Sch Corp | D40: 0.121 | E40: 7071.943 | F40: 0.121 | G40: 7167.904
B41: 2650 | C41: Caston School Corporation | D41: 0.1976 | E41: 7377.0408 | F41: 0.1976 | G41: 7476.1424
B42: 4205 | C42: Center Grove Com Sch Corp | D42: 0.0646 | E42: 6847.3018 | F42: 0.0646 | G42: 6940.9504
B43: 8360 | C43: Centerville-Abington Com Schs | D43: 0.123 | E43: 7079.909 | F43: 0.123 | G43: 7175.952
B44: 6055 | C44: Central Noble Com School Corp | D44: 0.077 | E44: 6896.691 | F44: 0.077 | G44: 6990.848
B45: 4145 | C45: Clark-Pleasant Com School Corp | D45: 0.1157 | E45: 7050.8331 | F45: 0.1157 | G45: 7146.5768
B46: 1000 | C46: Clarksville Com School Corp | D46: 0.2652 | E46: 7646.2916 | F46: 0.2652 | G46: 7748.1648
B47: 1125 | C47: Clay Community Schools | D47: 0.1654 | E47: 7248.7882 | F47: 0.1654 | G47: 7346.5696
B48: 1150 | C48: Clinton Central School Corp | D48: 0.1467 | E48: 7174.3061 | F48: 0.1467 | G48: 7271.3208
B49: 1160 | C49: Clinton Prairie School Corp | D49: 0.1173 | E49: 7057.2059 | F49: 0.1173 | G49: 7153.0152
B50: 6750 | C50: Cloverdale Community Schools | D50: 0.1576 | E50: =(D50*$J$18)+$J$17 -> 7217.7208 | F50: 0.1576 | G50: 7315.1824
B51: 1170 | C51: Community Schools of Frankfort | D51: 0.2063 | E51: 7411.6929 | F51: 0.2063 | G51: 7511.1512
B52: 2270 | C52: Concord Community Schools | D52: 0.1261 | E52: 7092.2563 | F52: 0.1261 | G52: 7188.4264
B53: 2440 | C53: Covington Community Sch Corp | D53: 0.0758 | E53: 6891.9114 | F53: 0.0758 | G53: 6986.0192
B54: 1900 | C54: Cowan Community School Corp | D54: 0.1795 | E54: 7304.9485 | F54: 0.1795 | G54: 7403.308
B55: 1300 | C55: Crawford Co Com School Corp | D55: 0.1995 | E55: 7384.6085 | F55: 0.1995 | G55: 7483.788
B56: 5855 | C56: Crawfordsville Com Schools | D56: 0.2129 | E56: 7437.9807 | F56: 0.2129 | G56: 7537.7096
B57: 3710 | C57: Crothersville Community Schools | D57: 0.1847 | E57: 7325.6601 | F57: 0.1847 | G57: 7424.2328
B58: 4660 | C58: Crown Point Community Sch Corp | D58: 0.0614 | E58: 6834.5562 | F58: 0.0614 | G58: 6928.0736
B59: 5455 | C59: Culver Community Schools Corp | D59: 0.1863 | E59: 7332.0329 | F59: 0.1863 | G59: 7430.6712
B60: 1940 | C60: Daleville Community Schools | D60: 0.1925 | E60: 7356.7275 | F60: 0.1925 | G60: 7455.62
B61: 3325 | C61: Danville Community School Corp | D61: 0.0617 | E61: 6835.7511 | F61: 0.0617 | G61: 6929.2808
B62: 1655 | C62: Decatur County Com Schools | D62: 0.1308 | E62: 7110.9764 | F62: 0.1308 | G62: 7207.3392
B63: 1835 | C63: DeKalb Co Ctl United Sch Dist | D63: 0.1007 | E63: 6991.0881 | F63: 0.1007 | G63: 7086.2168
B64: 1805 | C64: DeKalb Co Eastern Com Sch Dist | D64: 0.1143 | E64: 7045.2569 | F64: 0.1143 | G64: 7140.9432
B65: 1875 | C65: Delaware Community School Corp | D65: 0.1554 | E65: 7208.9582 | F65: 0.1554 | G65: 7306.3296
B66: 0755 | C66: Delphi Community School Corp | D66: 0.1015 | E66: 6994.2745 | F66: 0.1015 | G66: 7089.436
B67: 6470 | C67: Duneland School Corporation | D67: 0.0785 | E67: 6902.6655 | F67: 0.0785 | G67: 6996.884
B68: 0255 | C68: East Allen County Schools | D68: 0.2124 | E68: 7435.9892 | F68: 0.2124 | G68: 7535.6976
B69: 2725 | C69: East Gibson School Corporation | D69: 0.1229 | E69: 7079.5107 | F69: 0.1229 | G69: 7175.5496
B70: 6065 | C70: East Noble School Corp | D70: 0.1134 | E70: 7041.6722 | F70: 0.1134 | G70: 7137.3216
B71: 6510 | C71: East Porter County School Corp | D71: 0.0495 | E71: 6787.1585 | F71: 0.0495 | G71: 6880.188
B72: 8215 | C72: East Washington School Corp | D72: 0.1265 | E72: 7093.8495 | F72: 0.1265 | G72: 7190.036
B73: 2815 | C73: Eastbrook Community Sch Corp | D73: 0.125 | E73: 7087.875 | F73: 0.125 | G73: 7184
B74: 2940 | C74: Eastern Greene Schools | D74: 0.154 | E74: 7203.382 | F74: 0.154 | G74: 7300.696
B75: 3145 | C75: Eastern Hancock Co Com Sch Corp | D75: 0.0679 | E75: 6860.4457 | F75: 0.0679 | G75: 6954.2296
B76: 3480 | C76: Eastern Howard School Corp | D76: 0.1159 | E76: 7051.6297 | F76: 0.1159 | G76: 7147.3816
B77: 6620 | C77: Eastern Pulaski Com Sch Corp | D77: 0.134 | E77: 7123.722 | F77: 0.134 | G77: 7220.216
B78: 4215 | C78: Edinburgh Community Sch Corp | D78: 0.2285 | E78: 7500.1155 | F78: 0.2285 | G78: 7600.484
B79: 2305 | C79: Elkhart Community Schools | D79: 0.2176 | E79: 7456.7008 | F79: 0.2176 | G79: 7556.6224
B80: 5280 | C80: Elwood Community School Corp | D80: 0.2616 | E80: 7631.9528 | F80: 0.2616 | G80: 7733.6784
B81: 5910 | C81: Eminence Community School Corp | D81: 0.1126 | E81: =(D81*$J$18)+$J$17 -> 7038.4858 | F81: 0.1126 | G81: 7134.1024
B82: 7995 | C82: Evansville-Vanderburgh Sch Corp | D82: 0.219 | E82: 7462.277 | F82: 0.219 | G82: 7562.256
B83: 2155 | C83: Fairfield Community Schools | D83: 0.0442 | E83: 6766.0486 | F83: 0.0442 | G83: =(F83*$K$18)+$K$17 -> 6858.8608
B84: 2395 | C84: Fayette County School Corp | D84: 0.2496 | E84: 7584.1568 | F84: 0.2496 | G84: 7685.3904
B85: 0370 | C85: Flat Rock-Hawcreek School Corp | D85: 0.1308 | E85: 7110.9764 | F85: 0.1308 | G85: 7207.3392
B86: 0235 | C86: Fort Wayne Community Schools | D86: 0.2785 | E86: 7699.2655 | F86: 0.2785 | G86: 7801.684
B87: 4225 | C87: Franklin Community School Corp | D87: 0.1324 | E87: 7117.3492 | F87: 0.1324 | G87: 7213.7776
B88: 2475 | C88: Franklin County Com Sch Corp | D88: 0.1228 | E88: 7079.1124 | F88: 0.1228 | G88: 7175.1472
B89: 5310 | C89: Franklin Township Com Sch Corp | D89: 0.1305 | E89: 7109.7815 | F89: 0.1305 | G89: 7206.132
B90: 5245 | C90: Frankton-Lapel Community Schs | D90: 0.1191 | E90: 7064.3753 | F90: 0.1191 | G90: 7160.2584
B91: 7605 | C91: Fremont Community Schools | D91: 0.0888 | E91: 6943.6904 | F91: 0.0888 | G91: 7038.3312
B92: 8525 | C92: Frontier School Corporation | D92: 0.0867 | E92: 6935.3261 | F92: 0.0867 | G92: 7029.8808
B93: 1820 | C93: Garrett-Keyser-Butler Com | D93: 0.113 | E93: 7040.079 | F93: 0.113 | G93: 7135.712
B94: 4690 | C94: Gary Community School Corp | D94: 0.5788 | E94: 8895.3604 | F94: 0.5788 | G94: 9010.0912
B95: 2315 | C95: Goshen Community Schools | D95: 0.0925 | E95: 6958.4275 | F95: 0.0925 | G95: 7053.22
B96: 1010 | C96: Greater Clark County Schools | D96: 0.1561 | E96: 7211.7463 | F96: 0.1561 | G96: 7309.1464
B97: 2120 | C97: Greater Jasper Con Schs | D97: 0.064 | E97: 6844.912 | F97: 0.064 | G97: 6938.536
B98: 6755 | C98: Greencastle Community Sch Corp | D98: 0.1803 | E98: 7308.1349 | F98: 0.1803 | G98: 7406.5272
B99: 3125 | C99: Greenfield-Central Com Schools | D99: 0.1017 | E99: 6995.0711 | F99: 0.1017 | G99: 7090.2408
B100: 1730 | C100: Greensburg Community Schools | D100: 0.1643 | E100: 7244.4069 | F100: 0.1643 | G100: 7342.1432
B101: 4245 | C101: Greenwood Community Sch Corp | D101: 0.1673 | E101: 7256.3559 | F101: 0.1673 | G101: 7354.2152
B102: 4700 | C102: Griffith Public Schools | D102: 0.128 | E102: 7099.824 | F102: 0.128 | G102: 7196.072
B103: 7610 | C103: Hamilton Community Schools | D103: 0.0783 | E103: 6901.8689 | F103: 0.0783 | G103: 6996.0792
B104: 3025 | C104: Hamilton Heights School Corp | D104: 0.0728 | E104: 6879.9624 | F104: 0.0728 | G104: 6973.9472
B105: 3005 | C105: Hamilton Southeastern Schools | D105: 0.0393 | E105: 6746.5319 | F105: 0.0393 | G105: 6839.1432
B106: 4580 | C106: Hanover Community School Corp | D106: 0.0627 | E106: 6839.7341 | F106: 0.0627 | G106: 6933.3048
B107: 3625 | C107: Huntington Co Com Sch Corp | D107: 0.1328 | E107: 7118.9424 | F107: 0.1328 | G107: 7215.3872
B108: 5385 | C108: Indianapolis Public Schools | D108: 0.3657 | E108: 8046.5831 | F108: 0.3657 | G108: 8152.5768
B109: 6900 | C109: Jac-Cen-Del Community Sch Corp | D109: 0.1609 | E109: 7230.8647 | F109: 0.1609 | G109: 7328.4616
B110: 3945 | C110: Jay School Corp | D110: 0.1489 | E110: 7183.0687 | F110: 0.1489 | G110: 7280.1736
B111: 4015 | C111: Jennings County Schools | D111: 0.1503 | E111: 7188.6449 | F111: 0.1503 | G111: 7285.8072
B112: 7150 | C112: John Glenn School Corporation | D112: 0.1254 | E112: 7089.4682 | F112: 0.1254 | G112: 7185.6096
B113: 3785 | C113: Kankakee Valley School Corp | D113: 0.1331 | E113: 7120.1373 | F113: 0.1331 | G113: 7216.5944
B114: 7525 | C114: Knox Community School Corp | D114: 0.217 | E114: 7454.311 | F114: 0.217 | G114: 7554.208
B115: 3500 | C115: Kokomo-Center Twp Con Sch Corp | D115: 0.3396 | E115: 7942.6268 | F115: 0.3396 | G115: 8047.5504
B116: 7855 | C116: Lafayette School Corporation | D116: 0.2989 | E116: 7780.5187 | F116: 0.2989 | G116: 7883.7736
B117: 4615 | C117: Lake Central School Corp | D117: 0.0655 | E117: 6850.8865 | F117: 0.0655 | G117: 6944.572
B118: 4650 | C118: Lake Ridge Schools | D118: 0.4537 | E118: 8397.0871 | F118: 0.4537 | G118: 8506.6888
B119: 4680 | C119: Lake Station Community Schools | D119: 0.3253 | E119: 7885.6699 | F119: 0.3253 | G119: 7990.0072
B120: 4535 | C120: Lakeland School Corporation | D120: 0.1275 | E120: 7097.8325 | F120: 0.1275 | G120: 7194.06
B121: 3160 | C121: Lanesville Community School Corp | D121: 0.0323 | E121: 6718.6509 | F121: 0.0323 | G121: 6810.9752
B122: 4945 | C122: LaPorte Community School Corp | D122: 0.2021 | E122: 7394.9643 | F122: 0.2021 | G122: 7494.2504
B123: 1620 | C123: Lawrenceburg Com School Corp | D123: 0.1182 | E123: 7060.7906 | F123: 0.1182 | G123: 7156.6368
B124: 0665 | C124: Lebanon Community School Corp | D124: 0.1271 | E124: 7096.2393 | F124: 0.1271 | G124: 7192.4504
B125: 0815 | C125: Lewis Cass School Corp | D125: 0.1598 | E125: 7226.4834 | F125: 0.1598 | G125: 7324.0352
B126: 1895 | C126: Liberty-Perry Com School Corp | D126: 0.2131 | E126: 7438.7773 | F126: 0.2131 | G126: 7538.5144
B127: 2950 | C127: Linton-Stockton School Corp | D127: 0.1687 | E127: 7261.9321 | F127: 0.1687 | G127: 7359.8488
B128: 0875 | C128: Logansport Community Sch Corp | D128: 0.2149 | E128: 7445.9467 | F128: 0.2149 | G128: 7545.7576
B129: 5525 | C129: Loogootee Community Sch Corp | D129: 0.0919 | E129: 6956.0377 | F129: 0.0919 | G129: 7050.8056
B130: 8445 | C130: M S D Bluffton-Harrison | D130: 0.1244 | E130: 7085.4852 | F130: 0.1244 | G130: 7181.5856
B131: 6460 | C131: M S D Boone Township | D131: 0.1316 | E131: 7114.1628 | F131: 0.1316 | G131: 7210.5584
B132: 5300 | C132: M S D Decatur Township | D132: 0.2608 | E132: 7628.7664 | F132: 0.2608 | G132: 7730.4592
B133: 5330 | C133: M S D Lawrence Township | D133: 0.2496 | E133: 7584.1568 | F133: 0.2496 | G133: 7685.3904
B134: 5925 | C134: M S D Martinsville Schools | D134: 0.1677 | E134: 7257.9491 | F134: 0.1677 | G134: 7355.8248
B135: 6590 | C135: M S D Mount Vernon | D135: 0.1941 | E135: 7363.1003 | F135: 0.1941 | G135: 7462.0584
B136: 6600 | C136: M S D North Posey Co Schools | D136: 0.0827 | E136: 6919.3941 | F136: 0.0827 | G136: 7013.7848
B137: 4860 | C137: M S D of New Durham Township | D137: 0.1441 | E137: 7163.9503 | F137: 0.1441 | G137: 7260.8584
B138: 5340 | C138: M S D Perry Township | D138: 0.2408 | E138: 7549.1064 | F138: 0.2408 | G138: 7649.9792
B139: 5350 | C139: M S D Pike Township | D139: 0.2481 | E139: 7578.1823 | F139: 0.2481 | G139: 7679.3544
B140: 2960 | C140: M S D Shakamak Schools | D140: 0.2143 | E140: 7443.5569 | F140: 0.2143 | G140: 7543.3432
B141: 0125 | C141: M S D Southwest Allen County | D141: 0.0603 | E141: 6830.1749 | F141: 0.0603 | G141: 6923.6472
B142: 7615 | C142: M S D Steuben County | D142: 0.1326 | E142: 7118.1458 | F142: 0.1326 | G142: 7214.5824
B143: 8050 | C143: M S D Wabash County Schools | D143: 0.1466 | E143: 7173.9078 | F143: 0.1466 | G143: 7270.9184
B144: 8115 | C144: M S D Warren County | D144: 0.1323 | E144: 7116.9509 | F144: 0.1323 | G144: 7213.3752
B145: 5360 | C145: M S D Warren Township | D145: 0.3214 | E145: =(D145*$J$18)+$J$17 -> 7870.1362 | F145: 0.3214 | G145: 7974.3136
B146: 5370 | C146: M S D Washington Township | D146: 0.2087 | E146: 7421.2521 | F146: 0.2087 | G146: 7520.8088
B147: 5375 | C147: M S D Wayne Township | D147: 0.2657 | E147: 7648.2831 | F147: 0.2657 | G147: =(F147*$K$18)+$K$17 -> 7750.1768
B148: 5615 | C148: Maconaquah School Corp | D148: 0.225 | E148: 7486.175 | F148: 0.225 | G148: 7586.4
B149: 3995 | C149: Madison Consolidated Schools | D149: 0.1405 | E149: 7149.6115 | F149: 0.1405 | G149: 7246.372
B150: 2825 | C150: Madison-Grant United Sch Corp | D150: 0.2425 | E150: 7555.8775 | F150: 0.2425 | G150: 7656.82
B151: 8045 | C151: Manchester Community Schools | D151: 0.1061 | E151: 7012.5963 | F151: 0.1061 | G151: 7107.9464
B152: 2865 | C152: Marion Community Schools | D152: 0.4312 | E152: 8307.4696 | F152: 0.4312 | G152: 8416.1488
B153: 3640 | C153: Medora Community School Corp | D153: 0.2718 | E153: 7672.5794 | F153: 0.2718 | G153: 7774.7232
B154: 4600 | C154: Merrillville Community School | D154: 0.2474 | E154: 7575.3942 | F154: 0.2474 | G154: 7676.5376
B155: 4925 | C155: Michigan City Area Schools | D155: 0.4139 | E155: 8238.5637 | F155: 0.4139 | G155: 8346.5336
B156: 2275 | C156: Middlebury Community Schools | D156: 0.0501 | E156: 6789.5483 | F156: 0.0501 | G156: 6882.6024
B157: 6910 | C157: Milan Community Schools | D157: 0.1294 | E157: 7105.4002 | F157: 0.1294 | G157: 7201.7056
B158: 3335 | C158: Mill Creek Community Sch Corp | D158: 0.0792 | E158: 6905.4536 | F158: 0.0792 | G158: 6999.7008
B159: 2855 | C159: Mississinewa Community School Corp | D159: 0.273 | E159: 7677.359 | F159: 0.273 | G159: 7779.552
B160: 5085 | C160: Mitchell Community Schools | D160: 0.1911 | E160: 7351.1513 | F160: 0.1911 | G160: 7449.9864
B161: 6820 | C161: Monroe Central School Corp | D161: 0.2017 | E161: 7393.3711 | F161: 0.2017 | G161: 7492.6408
B162: 5740 | C162: Monroe County Com Sch Corp | D162: 0.1432 | E162: 7160.3656 | F162: 0.1432 | G162: 7257.2368
B163: 5900 | C163: Monroe-Gregg School District | D163: 0.1033 | E163: 7001.4439 | F163: 0.1033 | G163: 7096.6792
B164: 5930 | C164: Mooresville Con School Corp | D164: 0.1202 | E164: 7068.7566 | F164: 0.1202 | G164: 7164.6848
B165: 3135 | C165: Mt Vernon Community Sch Corp | D165: 0.0753 | E165: 6889.9199 | F165: 0.0753 | G165: 6984.0072
B166: 1970 | C166: Muncie Community Schools | D166: 0.4452 | E166: 8363.2316 | F166: 0.4452 | G166: 8472.4848
B167: 8305 | C167: Nettle Creek School Corp | D167: 0.1243 | E167: 7085.0869 | F167: 0.1243 | G167: 7181.1832
B168: 2400 | C168: New Albany-Floyd Co Con Sch | D168: 0.146 | E168: 7171.518 | F168: 0.146 | G168: 7268.504
B169: 3445 | C169: New Castle Community Sch Corp | D169: 0.245 | E169: 7565.835 | F169: 0.245 | G169: 7666.88
B170: 4805 | C170: New Prairie United School Corp | D170: 0.1031 | E170: 7000.6473 | F170: 0.1031 | G170: 7095.8744
B171: 4255 | C171: Nineveh-Hensley-Jackson United | D171: 0.0819 | E171: 6916.2077 | F171: 0.0819 | G171: 7010.5656
B172: 3070 | C172: Noblesville Schools | D172: 0.0593 | E172: 6826.1919 | F172: 0.0593 | G172: 6919.6232
B173: 0025 | C173: North Adams Community Schools | D173: 0.164 | E173: 7243.212 | F173: 0.164 | G173: 7340.936
B174: 6375 | C174: North Central Parke Con Sch Corp | D174: 0.211 | E174: 7430.413 | F174: 0.211 | G174: 7530.064
B175: 1375 | C175: North Daviess Com Schools | D175: 0.1101 | E175: 7028.5283 | F175: 0.1101 | G175: 7124.0424
B176: 2735 | C176: North Gibson School Corp | D176: 0.1845 | E176: 7324.8635 | F176: 0.1845 | G176: 7423.428
B177: 3180 | C177: North Harrison Com School Corp | D177: 0.11 | E177: 7028.13 | F177: 0.11 | G177: 7123.64
B178: 7515 | C178: North Judson-San Pierre Sch Corp | D178: 0.2108 | E178: 7429.6164 | F178: 0.2108 | G178: 7529.2592
B179: 4315 | C179: North Knox School Corp | D179: 0.182 | E179: 7314.906 | F179: 0.182 | G179: 7413.368
B180: 5075 | C180: North Lawrence Com Schools | D180: 0.1323 | E180: 7116.9509 | F180: 0.1323 | G180: 7213.3752
B181: 5620 | C181: North Miami Community Schools | D181: 0.1425 | E181: 7157.5775 | F181: 0.1425 | G181: 7254.42
B182: 5835 | C182: North Montgomery Com Sch Corp | D182: 0.1177 | E182: 7058.7991 | F182: 0.1177 | G182: 7154.6248
B183: 5945 | C183: North Newton School Corp | D183: 0.1457 | E183: 7170.3231 | F183: 0.1457 | G183: 7267.2968
B184: 6715 | C184: North Putnam Community Schools | D184: 0.1219 | E184: 7075.5277 | F184: 0.1219 | G184: 7171.5256
B185: 7385 | C185: North Spencer County Sch Corp | D185: 0.0924 | E185: 6958.0292 | F185: 0.0924 | G185: 7052.8176
B186: 8010 | C186: North Vermillion Com Sch Corp | D186: 0.1605 | E186: 7229.2715 | F186: 0.1605 | G186: 7326.852
B187: 3295 | C187: North West Hendricks Schools | D187: 0.0392 | E187: 6746.1336 | F187: 0.0392 | G187: 6838.7408
B188: 8515 | C188: North White School Corp | D188: 0.197 | E188: 7374.651 | F188: 0.197 | G188: 7473.728
B189: 2040 | C189: Northeast Dubois Co Sch Corp | D189: 0.0465 | E189: 6775.2095 | F189: 0.0465 | G189: 6868.116
B190: 7645 | C190: Northeast School Corp | D190: 0.2077 | E190: 7417.2691 | F190: 0.2077 | G190: 7516.7848
B191: 8375 | C191: Northeastern Wayne Schools | D191: 0.1311 | E191: 7112.1713 | F191: 0.1311 | G191: 7208.5464
B192: 8435 | C192: Northern Wells Com Schools | D192: 0.0612 | E192: 6833.7596 | F192: 0.0612 | G192: 6927.2688
B193: 0225 | C193: Northwest Allen County Schools | D193: 0.0407 | E193: 6752.1081 | F193: 0.0407 | G193: 6844.7768
B194: 7350 | C194: Northwestern Con School Corp | D194: 0.0848 | E194: 6927.7584 | F194: 0.0848 | G194: 7022.2352
B195: 3470 | C195: Northwestern School Corp | D195: 0.0929 | E195: 6960.0207 | F195: 0.0929 | G195: 7054.8296
B196: 5625 | C196: Oak Hill United School Corp | D196: 0.1305 | E196: 7109.7815 | F196: 0.1305 | G196: 7206.132
B197: 7495 | C197: Oregon-Davis School Corp | D197: 0.2306 | E197: 7508.4798 | F197: 0.2306 | G197: 7608.9344
B198: 61445 | C198: Orleans Community Schools | D198: 0.1437 | E198: 7162.3571 | F198: 0.1437 | G198: 7259.2488
B199: 6155 | C199: Paoli Community School Corp | D199: 0.1522 | E199: 7196.2126 | F199: 0.1522 | G199: 7293.4528
B200: 7175 | C200: Penn-Harris-Madison Sch Corp | D200: 0.0718 | E200: 6875.9794 | F200: 0.0718 | G200: 6969.9232
B201: 6325 | C201: Perry Central Com Schools Corp | D201: 0.1202 | E201: 7068.7566 | F201: 0.1202 | G201: 7164.6848
B202: 5635 | C202: Peru Community Schools | D202: 0.2886 | E202: 7739.4938 | F202: 0.2886 | G202: 7842.3264
B203: 6445 | C203: Pike County School Corp | D203: 0.157 | E203: 7215.331 | F203: 0.157 | G203: 7312.768
B204: 0775 | C204: Pioneer Regional School Corp | D204: 0.1291 | E204: 7104.2053 | F204: 0.1291 | G204: 7200.4984
... 102 more rows
